{"text_format":"3","workbook":"xlsx","n_sheets":12,"sheets":["Jan","Feb","Mar","Apr","Mei","Jun","Jul","Agu","Sep","Okt","Nov","Des"],"not_rendered":{"images":26,"defined_names":25},"read":"whole","date_system":"1900"}

{"sheet":"Jan","index":0,"n_rows":15,"n_cols":11,"rows_kept":15,"merged":[[2,1,2,5],[14,3,14,7],[15,3,15,7]]}
[{"$nulls":10},"PILIH TAHUN:"]
[{"$nulls":10},{"$f":"YEAR(TODAY())","v":2018}]
[null,{"$f":"UPPER(TEXT(DATE(TahunKalender,1,1),\"mmmm yyyy\"))","v":"JANUARI 2018"}]
[null,"SENIN","SELASA","RABU","KAMIS","JUMAT","SABTU","MINGGU"]
[null,{"$f":"IF(DAY(JanMin1)=1,\"\",IF(AND(YEAR(JanMin1+1)=TahunKalender,MONTH(JanMin1+1)=1),JanMin1+1,\"\"))","v":"2018-01-01"},{"$f":"IF(DAY(JanMin1)=1,\"\",IF(AND(YEAR(JanMin1+2)=TahunKalender,MONTH(JanMin1+2)=1),JanMin1+2,\"\"))","v":"2018-01-02"},{"$f":"IF(DAY(JanMin1)=1,\"\",IF(AND(YEAR(JanMin1+3)=TahunKalender,MONTH(JanMin1+3)=1),JanMin1+3,\"\"))","v":"2018-01-03"},{"$f":"IF(DAY(JanMin1)=1,\"\",IF(AND(YEAR(JanMin1+4)=TahunKalender,MONTH(JanMin1+4)=1),JanMin1+4,\"\"))","v":"2018-01-04"},{"$f":"IF(DAY(JanMin1)=1,\"\",IF(AND(YEAR(JanMin1+5)=TahunKalender,MONTH(JanMin1+5)=1),JanMin1+5,\"\"))","v":"2018-01-05"},{"$f":"IF(DAY(JanMin1)=1,\"\",IF(AND(YEAR(JanMin1+6)=TahunKalender,MONTH(JanMin1+6)=1),JanMin1+6,\"\"))","v":"2018-01-06"},{"$f":"IF(DAY(JanMin1)=1,IF(AND(YEAR(JanMin1)=TahunKalender,MONTH(JanMin1)=1),JanMin1,\"\"),IF(AND(YEAR(JanMin1+7)=TahunKalender,MONTH(JanMin1+7)=1),JanMin1+7,\"\"))","v":"2018-01-07"}]
[]
[null,{"$f":"IF(DAY(JanMin1)=1,IF(AND(YEAR(JanMin1+1)=TahunKalender,MONTH(JanMin1+1)=1),JanMin1+1,\"\"),IF(AND(YEAR(JanMin1+8)=TahunKalender,MONTH(JanMin1+8)=1),JanMin1+8,\"\"))","v":"2018-01-08"},{"$f":"IF(DAY(JanMin1)=1,IF(AND(YEAR(JanMin1+2)=TahunKalender,MONTH(JanMin1+2)=1),JanMin1+2,\"\"),IF(AND(YEAR(JanMin1+9)=TahunKalender,MONTH(JanMin1+9)=1),JanMin1+9,\"\"))","v":"2018-01-09"},{"$f":"IF(DAY(JanMin1)=1,IF(AND(YEAR(JanMin1+3)=TahunKalender,MONTH(JanMin1+3)=1),JanMin1+3,\"\"),IF(AND(YEAR(JanMin1+10)=TahunKalender,MONTH(JanMin1+10)=1),JanMin1+10,\"\"))","v":"2018-01-10"},{"$f":"IF(DAY(JanMin1)=1,IF(AND(YEAR(JanMin1+4)=TahunKalender,MONTH(JanMin1+4)=1),JanMin1+4,\"\"),IF(AND(YEAR(JanMin1+11)=TahunKalender,MONTH(JanMin1+11)=1),JanMin1+11,\"\"))","v":"2018-01-11"},{"$f":"IF(DAY(JanMin1)=1,IF(AND(YEAR(JanMin1+5)=TahunKalender,MONTH(JanMin1+5)=1),JanMin1+5,\"\"),IF(AND(YEAR(JanMin1+12)=TahunKalender,MONTH(JanMin1+12)=1),JanMin1+12,\"\"))","v":"2018-01-12"},{"$f":"IF(DAY(JanMin1)=1,IF(AND(YEAR(JanMin1+6)=TahunKalender,MONTH(JanMin1+6)=1),JanMin1+6,\"\"),IF(AND(YEAR(JanMin1+13)=TahunKalender,MONTH(JanMin1+13)=1),JanMin1+13,\"\"))","v":"2018-01-13"},{"$f":"IF(DAY(JanMin1)=1,IF(AND(YEAR(JanMin1+7)=TahunKalender,MONTH(JanMin1+7)=1),JanMin1+7,\"\"),IF(AND(YEAR(JanMin1+14)=TahunKalender,MONTH(JanMin1+14)=1),JanMin1+14,\"\"))","v":"2018-01-14"}]
[]
[null,{"$f":"IF(DAY(JanMin1)=1,IF(AND(YEAR(JanMin1+8)=TahunKalender,MONTH(JanMin1+8)=1),JanMin1+8,\"\"),IF(AND(YEAR(JanMin1+15)=TahunKalender,MONTH(JanMin1+15)=1),JanMin1+15,\"\"))","v":"2018-01-15"},{"$f":"IF(DAY(JanMin1)=1,IF(AND(YEAR(JanMin1+9)=TahunKalender,MONTH(JanMin1+9)=1),JanMin1+9,\"\"),IF(AND(YEAR(JanMin1+16)=TahunKalender,MONTH(JanMin1+16)=1),JanMin1+16,\"\"))","v":"2018-01-16"},{"$f":"IF(DAY(JanMin1)=1,IF(AND(YEAR(JanMin1+10)=TahunKalender,MONTH(JanMin1+10)=1),JanMin1+10,\"\"),IF(AND(YEAR(JanMin1+17)=TahunKalender,MONTH(JanMin1+17)=1),JanMin1+17,\"\"))","v":"2018-01-17"},{"$f":"IF(DAY(JanMin1)=1,IF(AND(YEAR(JanMin1+11)=TahunKalender,MONTH(JanMin1+11)=1),JanMin1+11,\"\"),IF(AND(YEAR(JanMin1+18)=TahunKalender,MONTH(JanMin1+18)=1),JanMin1+18,\"\"))","v":"2018-01-18"},{"$f":"IF(DAY(JanMin1)=1,IF(AND(YEAR(JanMin1+12)=TahunKalender,MONTH(JanMin1+12)=1),JanMin1+12,\"\"),IF(AND(YEAR(JanMin1+19)=TahunKalender,MONTH(JanMin1+19)=1),JanMin1+19,\"\"))","v":"2018-01-19"},{"$f":"IF(DAY(JanMin1)=1,IF(AND(YEAR(JanMin1+13)=TahunKalender,MONTH(JanMin1+13)=1),JanMin1+13,\"\"),IF(AND(YEAR(JanMin1+20)=TahunKalender,MONTH(JanMin1+20)=1),JanMin1+20,\"\"))","v":"2018-01-20"},{"$f":"IF(DAY(JanMin1)=1,IF(AND(YEAR(JanMin1+14)=TahunKalender,MONTH(JanMin1+14)=1),JanMin1+14,\"\"),IF(AND(YEAR(JanMin1+21)=TahunKalender,MONTH(JanMin1+21)=1),JanMin1+21,\"\"))","v":"2018-01-21"}]
[]
[null,{"$f":"IF(DAY(JanMin1)=1,IF(AND(YEAR(JanMin1+15)=TahunKalender,MONTH(JanMin1+15)=1),JanMin1+15,\"\"),IF(AND(YEAR(JanMin1+22)=TahunKalender,MONTH(JanMin1+22)=1),JanMin1+22,\"\"))","v":"2018-01-22"},{"$f":"IF(DAY(JanMin1)=1,IF(AND(YEAR(JanMin1+16)=TahunKalender,MONTH(JanMin1+16)=1),JanMin1+16,\"\"),IF(AND(YEAR(JanMin1+23)=TahunKalender,MONTH(JanMin1+23)=1),JanMin1+23,\"\"))","v":"2018-01-23"},{"$f":"IF(DAY(JanMin1)=1,IF(AND(YEAR(JanMin1+17)=TahunKalender,MONTH(JanMin1+17)=1),JanMin1+17,\"\"),IF(AND(YEAR(JanMin1+24)=TahunKalender,MONTH(JanMin1+24)=1),JanMin1+24,\"\"))","v":"2018-01-24"},{"$f":"IF(DAY(JanMin1)=1,IF(AND(YEAR(JanMin1+18)=TahunKalender,MONTH(JanMin1+18)=1),JanMin1+18,\"\"),IF(AND(YEAR(JanMin1+25)=TahunKalender,MONTH(JanMin1+25)=1),JanMin1+25,\"\"))","v":"2018-01-25"},{"$f":"IF(DAY(JanMin1)=1,IF(AND(YEAR(JanMin1+19)=TahunKalender,MONTH(JanMin1+19)=1),JanMin1+19,\"\"),IF(AND(YEAR(JanMin1+26)=TahunKalender,MONTH(JanMin1+26)=1),JanMin1+26,\"\"))","v":"2018-01-26"},{"$f":"IF(DAY(JanMin1)=1,IF(AND(YEAR(JanMin1+20)=TahunKalender,MONTH(JanMin1+20)=1),JanMin1+20,\"\"),IF(AND(YEAR(JanMin1+27)=TahunKalender,MONTH(JanMin1+27)=1),JanMin1+27,\"\"))","v":"2018-01-27"},{"$f":"IF(DAY(JanMin1)=1,IF(AND(YEAR(JanMin1+21)=TahunKalender,MONTH(JanMin1+21)=1),JanMin1+21,\"\"),IF(AND(YEAR(JanMin1+28)=TahunKalender,MONTH(JanMin1+28)=1),JanMin1+28,\"\"))","v":"2018-01-28"}]
[]
[null,{"$f":"IF(DAY(JanMin1)=1,IF(AND(YEAR(JanMin1+22)=TahunKalender,MONTH(JanMin1+22)=1),JanMin1+22,\"\"),IF(AND(YEAR(JanMin1+29)=TahunKalender,MONTH(JanMin1+29)=1),JanMin1+29,\"\"))","v":"2018-01-29"},{"$f":"IF(DAY(JanMin1)=1,IF(AND(YEAR(JanMin1+23)=TahunKalender,MONTH(JanMin1+23)=1),JanMin1+23,\"\"),IF(AND(YEAR(JanMin1+30)=TahunKalender,MONTH(JanMin1+30)=1),JanMin1+30,\"\"))","v":"2018-01-30"},{"$f":"IF(DAY(JanMin1)=1,IF(AND(YEAR(JanMin1+24)=TahunKalender,MONTH(JanMin1+24)=1),JanMin1+24,\"\"),IF(AND(YEAR(JanMin1+31)=TahunKalender,MONTH(JanMin1+31)=1),JanMin1+31,\"\"))","v":"2018-01-31"},{"$f":"IF(DAY(JanMin1)=1,IF(AND(YEAR(JanMin1+25)=TahunKalender,MONTH(JanMin1+25)=1),JanMin1+25,\"\"),IF(AND(YEAR(JanMin1+32)=TahunKalender,MONTH(JanMin1+32)=1),JanMin1+32,\"\"))","v":""},{"$f":"IF(DAY(JanMin1)=1,IF(AND(YEAR(JanMin1+26)=TahunKalender,MONTH(JanMin1+26)=1),JanMin1+26,\"\"),IF(AND(YEAR(JanMin1+33)=TahunKalender,MONTH(JanMin1+33)=1),JanMin1+33,\"\"))","v":""},{"$f":"IF(DAY(JanMin1)=1,IF(AND(YEAR(JanMin1+27)=TahunKalender,MONTH(JanMin1+27)=1),JanMin1+27,\"\"),IF(AND(YEAR(JanMin1+34)=TahunKalender,MONTH(JanMin1+34)=1),JanMin1+34,\"\"))","v":""},{"$f":"IF(DAY(JanMin1)=1,IF(AND(YEAR(JanMin1+28)=TahunKalender,MONTH(JanMin1+28)=1),JanMin1+28,\"\"),IF(AND(YEAR(JanMin1+35)=TahunKalender,MONTH(JanMin1+35)=1),JanMin1+35,\"\"))","v":""}]
[]
[null,{"$f":"IF(DAY(JanMin1)=1,IF(AND(YEAR(JanMin1+29)=TahunKalender,MONTH(JanMin1+29)=1),JanMin1+29,\"\"),IF(AND(YEAR(JanMin1+36)=TahunKalender,MONTH(JanMin1+36)=1),JanMin1+36,\"\"))","v":""},{"$f":"IF(DAY(JanMin1)=1,IF(AND(YEAR(JanMin1+30)=TahunKalender,MONTH(JanMin1+30)=1),JanMin1+30,\"\"),IF(AND(YEAR(JanMin1+37)=TahunKalender,MONTH(JanMin1+37)=1),JanMin1+37,\"\"))","v":""},"CATATAN:"]

{"sheet":"Feb","index":1,"n_rows":15,"n_cols":8,"rows_kept":15,"merged":[[2,1,2,5],[14,3,14,7],[15,3,15,7]]}
[]
[]
[null,{"$f":"UPPER(TEXT(DATE(TahunKalender,2,1),\"mmmm yyyy\"))","v":"FEBRUARI 2018"}]
[null,"SENIN","SELASA","RABU","KAMIS","JUMAT","SABTU","MINGGU"]
[null,{"$f":"IF(DAY(FebMin1)=1,\"\",IF(AND(YEAR(FebMin1+1)=TahunKalender,MONTH(FebMin1+1)=2),FebMin1+1,\"\"))","v":""},{"$f":"IF(DAY(FebMin1)=1,\"\",IF(AND(YEAR(FebMin1+2)=TahunKalender,MONTH(FebMin1+2)=2),FebMin1+2,\"\"))","v":""},{"$f":"IF(DAY(FebMin1)=1,\"\",IF(AND(YEAR(FebMin1+3)=TahunKalender,MONTH(FebMin1+3)=2),FebMin1+3,\"\"))","v":""},{"$f":"IF(DAY(FebMin1)=1,\"\",IF(AND(YEAR(FebMin1+4)=TahunKalender,MONTH(FebMin1+4)=2),FebMin1+4,\"\"))","v":"2018-02-01"},{"$f":"IF(DAY(FebMin1)=1,\"\",IF(AND(YEAR(FebMin1+5)=TahunKalender,MONTH(FebMin1+5)=2),FebMin1+5,\"\"))","v":"2018-02-02"},{"$f":"IF(DAY(FebMin1)=1,\"\",IF(AND(YEAR(FebMin1+6)=TahunKalender,MONTH(FebMin1+6)=2),FebMin1+6,\"\"))","v":"2018-02-03"},{"$f":"IF(DAY(FebMin1)=1,IF(AND(YEAR(FebMin1)=TahunKalender,MONTH(FebMin1)=2),FebMin1,\"\"),IF(AND(YEAR(FebMin1+7)=TahunKalender,MONTH(FebMin1+7)=2),FebMin1+7,\"\"))","v":"2018-02-04"}]
[]
[null,{"$f":"IF(DAY(FebMin1)=1,IF(AND(YEAR(FebMin1+1)=TahunKalender,MONTH(FebMin1+1)=2),FebMin1+1,\"\"),IF(AND(YEAR(FebMin1+8)=TahunKalender,MONTH(FebMin1+8)=2),FebMin1+8,\"\"))","v":"2018-02-05"},{"$f":"IF(DAY(FebMin1)=1,IF(AND(YEAR(FebMin1+2)=TahunKalender,MONTH(FebMin1+2)=2),FebMin1+2,\"\"),IF(AND(YEAR(FebMin1+9)=TahunKalender,MONTH(FebMin1+9)=2),FebMin1+9,\"\"))","v":"2018-02-06"},{"$f":"IF(DAY(FebMin1)=1,IF(AND(YEAR(FebMin1+3)=TahunKalender,MONTH(FebMin1+3)=2),FebMin1+3,\"\"),IF(AND(YEAR(FebMin1+10)=TahunKalender,MONTH(FebMin1+10)=2),FebMin1+10,\"\"))","v":"2018-02-07"},{"$f":"IF(DAY(FebMin1)=1,IF(AND(YEAR(FebMin1+4)=TahunKalender,MONTH(FebMin1+4)=2),FebMin1+4,\"\"),IF(AND(YEAR(FebMin1+11)=TahunKalender,MONTH(FebMin1+11)=2),FebMin1+11,\"\"))","v":"2018-02-08"},{"$f":"IF(DAY(FebMin1)=1,IF(AND(YEAR(FebMin1+5)=TahunKalender,MONTH(FebMin1+5)=2),FebMin1+5,\"\"),IF(AND(YEAR(FebMin1+12)=TahunKalender,MONTH(FebMin1+12)=2),FebMin1+12,\"\"))","v":"2018-02-09"},{"$f":"IF(DAY(FebMin1)=1,IF(AND(YEAR(FebMin1+6)=TahunKalender,MONTH(FebMin1+6)=2),FebMin1+6,\"\"),IF(AND(YEAR(FebMin1+13)=TahunKalender,MONTH(FebMin1+13)=2),FebMin1+13,\"\"))","v":"2018-02-10"},{"$f":"IF(DAY(FebMin1)=1,IF(AND(YEAR(FebMin1+7)=TahunKalender,MONTH(FebMin1+7)=2),FebMin1+7,\"\"),IF(AND(YEAR(FebMin1+14)=TahunKalender,MONTH(FebMin1+14)=2),FebMin1+14,\"\"))","v":"2018-02-11"}]
[]
[null,{"$f":"IF(DAY(FebMin1)=1,IF(AND(YEAR(FebMin1+8)=TahunKalender,MONTH(FebMin1+8)=2),FebMin1+8,\"\"),IF(AND(YEAR(FebMin1+15)=TahunKalender,MONTH(FebMin1+15)=2),FebMin1+15,\"\"))","v":"2018-02-12"},{"$f":"IF(DAY(FebMin1)=1,IF(AND(YEAR(FebMin1+9)=TahunKalender,MONTH(FebMin1+9)=2),FebMin1+9,\"\"),IF(AND(YEAR(FebMin1+16)=TahunKalender,MONTH(FebMin1+16)=2),FebMin1+16,\"\"))","v":"2018-02-13"},{"$f":"IF(DAY(FebMin1)=1,IF(AND(YEAR(FebMin1+10)=TahunKalender,MONTH(FebMin1+10)=2),FebMin1+10,\"\"),IF(AND(YEAR(FebMin1+17)=TahunKalender,MONTH(FebMin1+17)=2),FebMin1+17,\"\"))","v":"2018-02-14"},{"$f":"IF(DAY(FebMin1)=1,IF(AND(YEAR(FebMin1+11)=TahunKalender,MONTH(FebMin1+11)=2),FebMin1+11,\"\"),IF(AND(YEAR(FebMin1+18)=TahunKalender,MONTH(FebMin1+18)=2),FebMin1+18,\"\"))","v":"2018-02-15"},{"$f":"IF(DAY(FebMin1)=1,IF(AND(YEAR(FebMin1+12)=TahunKalender,MONTH(FebMin1+12)=2),FebMin1+12,\"\"),IF(AND(YEAR(FebMin1+19)=TahunKalender,MONTH(FebMin1+19)=2),FebMin1+19,\"\"))","v":"2018-02-16"},{"$f":"IF(DAY(FebMin1)=1,IF(AND(YEAR(FebMin1+13)=TahunKalender,MONTH(FebMin1+13)=2),FebMin1+13,\"\"),IF(AND(YEAR(FebMin1+20)=TahunKalender,MONTH(FebMin1+20)=2),FebMin1+20,\"\"))","v":"2018-02-17"},{"$f":"IF(DAY(FebMin1)=1,IF(AND(YEAR(FebMin1+14)=TahunKalender,MONTH(FebMin1+14)=2),FebMin1+14,\"\"),IF(AND(YEAR(FebMin1+21)=TahunKalender,MONTH(FebMin1+21)=2),FebMin1+21,\"\"))","v":"2018-02-18"}]
[]
[null,{"$f":"IF(DAY(FebMin1)=1,IF(AND(YEAR(FebMin1+15)=TahunKalender,MONTH(FebMin1+15)=2),FebMin1+15,\"\"),IF(AND(YEAR(FebMin1+22)=TahunKalender,MONTH(FebMin1+22)=2),FebMin1+22,\"\"))","v":"2018-02-19"},{"$f":"IF(DAY(FebMin1)=1,IF(AND(YEAR(FebMin1+16)=TahunKalender,MONTH(FebMin1+16)=2),FebMin1+16,\"\"),IF(AND(YEAR(FebMin1+23)=TahunKalender,MONTH(FebMin1+23)=2),FebMin1+23,\"\"))","v":"2018-02-20"},{"$f":"IF(DAY(FebMin1)=1,IF(AND(YEAR(FebMin1+17)=TahunKalender,MONTH(FebMin1+17)=2),FebMin1+17,\"\"),IF(AND(YEAR(FebMin1+24)=TahunKalender,MONTH(FebMin1+24)=2),FebMin1+24,\"\"))","v":"2018-02-21"},{"$f":"IF(DAY(FebMin1)=1,IF(AND(YEAR(FebMin1+18)=TahunKalender,MONTH(FebMin1+18)=2),FebMin1+18,\"\"),IF(AND(YEAR(FebMin1+25)=TahunKalender,MONTH(FebMin1+25)=2),FebMin1+25,\"\"))","v":"2018-02-22"},{"$f":"IF(DAY(FebMin1)=1,IF(AND(YEAR(FebMin1+19)=TahunKalender,MONTH(FebMin1+19)=2),FebMin1+19,\"\"),IF(AND(YEAR(FebMin1+26)=TahunKalender,MONTH(FebMin1+26)=2),FebMin1+26,\"\"))","v":"2018-02-23"},{"$f":"IF(DAY(FebMin1)=1,IF(AND(YEAR(FebMin1+20)=TahunKalender,MONTH(FebMin1+20)=2),FebMin1+20,\"\"),IF(AND(YEAR(FebMin1+27)=TahunKalender,MONTH(FebMin1+27)=2),FebMin1+27,\"\"))","v":"2018-02-24"},{"$f":"IF(DAY(FebMin1)=1,IF(AND(YEAR(FebMin1+21)=TahunKalender,MONTH(FebMin1+21)=2),FebMin1+21,\"\"),IF(AND(YEAR(FebMin1+28)=TahunKalender,MONTH(FebMin1+28)=2),FebMin1+28,\"\"))","v":"2018-02-25"}]
[]
[null,{"$f":"IF(DAY(FebMin1)=1,IF(AND(YEAR(FebMin1+22)=TahunKalender,MONTH(FebMin1+22)=2),FebMin1+22,\"\"),IF(AND(YEAR(FebMin1+29)=TahunKalender,MONTH(FebMin1+29)=2),FebMin1+29,\"\"))","v":"2018-02-26"},{"$f":"IF(DAY(FebMin1)=1,IF(AND(YEAR(FebMin1+23)=TahunKalender,MONTH(FebMin1+23)=2),FebMin1+23,\"\"),IF(AND(YEAR(FebMin1+30)=TahunKalender,MONTH(FebMin1+30)=2),FebMin1+30,\"\"))","v":"2018-02-27"},{"$f":"IF(DAY(FebMin1)=1,IF(AND(YEAR(FebMin1+24)=TahunKalender,MONTH(FebMin1+24)=2),FebMin1+24,\"\"),IF(AND(YEAR(FebMin1+31)=TahunKalender,MONTH(FebMin1+31)=2),FebMin1+31,\"\"))","v":"2018-02-28"},{"$f":"IF(DAY(FebMin1)=1,IF(AND(YEAR(FebMin1+25)=TahunKalender,MONTH(FebMin1+25)=2),FebMin1+25,\"\"),IF(AND(YEAR(FebMin1+32)=TahunKalender,MONTH(FebMin1+32)=2),FebMin1+32,\"\"))","v":""},{"$f":"IF(DAY(FebMin1)=1,IF(AND(YEAR(FebMin1+26)=TahunKalender,MONTH(FebMin1+26)=2),FebMin1+26,\"\"),IF(AND(YEAR(FebMin1+33)=TahunKalender,MONTH(FebMin1+33)=2),FebMin1+33,\"\"))","v":""},{"$f":"IF(DAY(FebMin1)=1,IF(AND(YEAR(FebMin1+27)=TahunKalender,MONTH(FebMin1+27)=2),FebMin1+27,\"\"),IF(AND(YEAR(FebMin1+34)=TahunKalender,MONTH(FebMin1+34)=2),FebMin1+34,\"\"))","v":""},{"$f":"IF(DAY(FebMin1)=1,IF(AND(YEAR(FebMin1+28)=TahunKalender,MONTH(FebMin1+28)=2),FebMin1+28,\"\"),IF(AND(YEAR(FebMin1+35)=TahunKalender,MONTH(FebMin1+35)=2),FebMin1+35,\"\"))","v":""}]
[]
[null,{"$f":"IF(DAY(FebMin1)=1,IF(AND(YEAR(FebMin1+29)=TahunKalender,MONTH(FebMin1+29)=2),FebMin1+29,\"\"),IF(AND(YEAR(FebMin1+36)=TahunKalender,MONTH(FebMin1+36)=2),FebMin1+36,\"\"))","v":""},{"$f":"IF(DAY(FebMin1)=1,IF(AND(YEAR(FebMin1+30)=TahunKalender,MONTH(FebMin1+30)=2),FebMin1+30,\"\"),IF(AND(YEAR(FebMin1+37)=TahunKalender,MONTH(FebMin1+37)=2),FebMin1+37,\"\"))","v":""},"CATATAN:"]

{"sheet":"Mar","index":2,"n_rows":15,"n_cols":8,"rows_kept":15,"merged":[[2,1,2,5],[14,3,14,7],[15,3,15,7]]}
[]
[]
[null,{"$f":"UPPER(TEXT(DATE(TahunKalender,3,1),\"mmmm yyyy\"))","v":"MARET 2018"}]
[null,"SENIN","SELASA","RABU","KAMIS","JUMAT","SABTU","MINGGU"]
[null,{"$f":"IF(DAY(MarMin1)=1,\"\",IF(AND(YEAR(MarMin1+1)=TahunKalender,MONTH(MarMin1+1)=3),MarMin1+1,\"\"))","v":""},{"$f":"IF(DAY(MarMin1)=1,\"\",IF(AND(YEAR(MarMin1+2)=TahunKalender,MONTH(MarMin1+2)=3),MarMin1+2,\"\"))","v":""},{"$f":"IF(DAY(MarMin1)=1,\"\",IF(AND(YEAR(MarMin1+3)=TahunKalender,MONTH(MarMin1+3)=3),MarMin1+3,\"\"))","v":""},{"$f":"IF(DAY(MarMin1)=1,\"\",IF(AND(YEAR(MarMin1+4)=TahunKalender,MONTH(MarMin1+4)=3),MarMin1+4,\"\"))","v":"2018-03-01"},{"$f":"IF(DAY(MarMin1)=1,\"\",IF(AND(YEAR(MarMin1+5)=TahunKalender,MONTH(MarMin1+5)=3),MarMin1+5,\"\"))","v":"2018-03-02"},{"$f":"IF(DAY(MarMin1)=1,\"\",IF(AND(YEAR(MarMin1+6)=TahunKalender,MONTH(MarMin1+6)=3),MarMin1+6,\"\"))","v":"2018-03-03"},{"$f":"IF(DAY(MarMin1)=1,IF(AND(YEAR(MarMin1)=TahunKalender,MONTH(MarMin1)=3),MarMin1,\"\"),IF(AND(YEAR(MarMin1+7)=TahunKalender,MONTH(MarMin1+7)=3),MarMin1+7,\"\"))","v":"2018-03-04"}]
[]
[null,{"$f":"IF(DAY(MarMin1)=1,IF(AND(YEAR(MarMin1+1)=TahunKalender,MONTH(MarMin1+1)=3),MarMin1+1,\"\"),IF(AND(YEAR(MarMin1+8)=TahunKalender,MONTH(MarMin1+8)=3),MarMin1+8,\"\"))","v":"2018-03-05"},{"$f":"IF(DAY(MarMin1)=1,IF(AND(YEAR(MarMin1+2)=TahunKalender,MONTH(MarMin1+2)=3),MarMin1+2,\"\"),IF(AND(YEAR(MarMin1+9)=TahunKalender,MONTH(MarMin1+9)=3),MarMin1+9,\"\"))","v":"2018-03-06"},{"$f":"IF(DAY(MarMin1)=1,IF(AND(YEAR(MarMin1+3)=TahunKalender,MONTH(MarMin1+3)=3),MarMin1+3,\"\"),IF(AND(YEAR(MarMin1+10)=TahunKalender,MONTH(MarMin1+10)=3),MarMin1+10,\"\"))","v":"2018-03-07"},{"$f":"IF(DAY(MarMin1)=1,IF(AND(YEAR(MarMin1+4)=TahunKalender,MONTH(MarMin1+4)=3),MarMin1+4,\"\"),IF(AND(YEAR(MarMin1+11)=TahunKalender,MONTH(MarMin1+11)=3),MarMin1+11,\"\"))","v":"2018-03-08"},{"$f":"IF(DAY(MarMin1)=1,IF(AND(YEAR(MarMin1+5)=TahunKalender,MONTH(MarMin1+5)=3),MarMin1+5,\"\"),IF(AND(YEAR(MarMin1+12)=TahunKalender,MONTH(MarMin1+12)=3),MarMin1+12,\"\"))","v":"2018-03-09"},{"$f":"IF(DAY(MarMin1)=1,IF(AND(YEAR(MarMin1+6)=TahunKalender,MONTH(MarMin1+6)=3),MarMin1+6,\"\"),IF(AND(YEAR(MarMin1+13)=TahunKalender,MONTH(MarMin1+13)=3),MarMin1+13,\"\"))","v":"2018-03-10"},{"$f":"IF(DAY(MarMin1)=1,IF(AND(YEAR(MarMin1+7)=TahunKalender,MONTH(MarMin1+7)=3),MarMin1+7,\"\"),IF(AND(YEAR(MarMin1+14)=TahunKalender,MONTH(MarMin1+14)=3),MarMin1+14,\"\"))","v":"2018-03-11"}]
[]
[null,{"$f":"IF(DAY(MarMin1)=1,IF(AND(YEAR(MarMin1+8)=TahunKalender,MONTH(MarMin1+8)=3),MarMin1+8,\"\"),IF(AND(YEAR(MarMin1+15)=TahunKalender,MONTH(MarMin1+15)=3),MarMin1+15,\"\"))","v":"2018-03-12"},{"$f":"IF(DAY(MarMin1)=1,IF(AND(YEAR(MarMin1+9)=TahunKalender,MONTH(MarMin1+9)=3),MarMin1+9,\"\"),IF(AND(YEAR(MarMin1+16)=TahunKalender,MONTH(MarMin1+16)=3),MarMin1+16,\"\"))","v":"2018-03-13"},{"$f":"IF(DAY(MarMin1)=1,IF(AND(YEAR(MarMin1+10)=TahunKalender,MONTH(MarMin1+10)=3),MarMin1+10,\"\"),IF(AND(YEAR(MarMin1+17)=TahunKalender,MONTH(MarMin1+17)=3),MarMin1+17,\"\"))","v":"2018-03-14"},{"$f":"IF(DAY(MarMin1)=1,IF(AND(YEAR(MarMin1+11)=TahunKalender,MONTH(MarMin1+11)=3),MarMin1+11,\"\"),IF(AND(YEAR(MarMin1+18)=TahunKalender,MONTH(MarMin1+18)=3),MarMin1+18,\"\"))","v":"2018-03-15"},{"$f":"IF(DAY(MarMin1)=1,IF(AND(YEAR(MarMin1+12)=TahunKalender,MONTH(MarMin1+12)=3),MarMin1+12,\"\"),IF(AND(YEAR(MarMin1+19)=TahunKalender,MONTH(MarMin1+19)=3),MarMin1+19,\"\"))","v":"2018-03-16"},{"$f":"IF(DAY(MarMin1)=1,IF(AND(YEAR(MarMin1+13)=TahunKalender,MONTH(MarMin1+13)=3),MarMin1+13,\"\"),IF(AND(YEAR(MarMin1+20)=TahunKalender,MONTH(MarMin1+20)=3),MarMin1+20,\"\"))","v":"2018-03-17"},{"$f":"IF(DAY(MarMin1)=1,IF(AND(YEAR(MarMin1+14)=TahunKalender,MONTH(MarMin1+14)=3),MarMin1+14,\"\"),IF(AND(YEAR(MarMin1+21)=TahunKalender,MONTH(MarMin1+21)=3),MarMin1+21,\"\"))","v":"2018-03-18"}]
[]
[null,{"$f":"IF(DAY(MarMin1)=1,IF(AND(YEAR(MarMin1+15)=TahunKalender,MONTH(MarMin1+15)=3),MarMin1+15,\"\"),IF(AND(YEAR(MarMin1+22)=TahunKalender,MONTH(MarMin1+22)=3),MarMin1+22,\"\"))","v":"2018-03-19"},{"$f":"IF(DAY(MarMin1)=1,IF(AND(YEAR(MarMin1+16)=TahunKalender,MONTH(MarMin1+16)=3),MarMin1+16,\"\"),IF(AND(YEAR(MarMin1+23)=TahunKalender,MONTH(MarMin1+23)=3),MarMin1+23,\"\"))","v":"2018-03-20"},{"$f":"IF(DAY(MarMin1)=1,IF(AND(YEAR(MarMin1+17)=TahunKalender,MONTH(MarMin1+17)=3),MarMin1+17,\"\"),IF(AND(YEAR(MarMin1+24)=TahunKalender,MONTH(MarMin1+24)=3),MarMin1+24,\"\"))","v":"2018-03-21"},{"$f":"IF(DAY(MarMin1)=1,IF(AND(YEAR(MarMin1+18)=TahunKalender,MONTH(MarMin1+18)=3),MarMin1+18,\"\"),IF(AND(YEAR(MarMin1+25)=TahunKalender,MONTH(MarMin1+25)=3),MarMin1+25,\"\"))","v":"2018-03-22"},{"$f":"IF(DAY(MarMin1)=1,IF(AND(YEAR(MarMin1+19)=TahunKalender,MONTH(MarMin1+19)=3),MarMin1+19,\"\"),IF(AND(YEAR(MarMin1+26)=TahunKalender,MONTH(MarMin1+26)=3),MarMin1+26,\"\"))","v":"2018-03-23"},{"$f":"IF(DAY(MarMin1)=1,IF(AND(YEAR(MarMin1+20)=TahunKalender,MONTH(MarMin1+20)=3),MarMin1+20,\"\"),IF(AND(YEAR(MarMin1+27)=TahunKalender,MONTH(MarMin1+27)=3),MarMin1+27,\"\"))","v":"2018-03-24"},{"$f":"IF(DAY(MarMin1)=1,IF(AND(YEAR(MarMin1+21)=TahunKalender,MONTH(MarMin1+21)=3),MarMin1+21,\"\"),IF(AND(YEAR(MarMin1+28)=TahunKalender,MONTH(MarMin1+28)=3),MarMin1+28,\"\"))","v":"2018-03-25"}]
[]
[null,{"$f":"IF(DAY(MarMin1)=1,IF(AND(YEAR(MarMin1+22)=TahunKalender,MONTH(MarMin1+22)=3),MarMin1+22,\"\"),IF(AND(YEAR(MarMin1+29)=TahunKalender,MONTH(MarMin1+29)=3),MarMin1+29,\"\"))","v":"2018-03-26"},{"$f":"IF(DAY(MarMin1)=1,IF(AND(YEAR(MarMin1+23)=TahunKalender,MONTH(MarMin1+23)=3),MarMin1+23,\"\"),IF(AND(YEAR(MarMin1+30)=TahunKalender,MONTH(MarMin1+30)=3),MarMin1+30,\"\"))","v":"2018-03-27"},{"$f":"IF(DAY(MarMin1)=1,IF(AND(YEAR(MarMin1+24)=TahunKalender,MONTH(MarMin1+24)=3),MarMin1+24,\"\"),IF(AND(YEAR(MarMin1+31)=TahunKalender,MONTH(MarMin1+31)=3),MarMin1+31,\"\"))","v":"2018-03-28"},{"$f":"IF(DAY(MarMin1)=1,IF(AND(YEAR(MarMin1+25)=TahunKalender,MONTH(MarMin1+25)=3),MarMin1+25,\"\"),IF(AND(YEAR(MarMin1+32)=TahunKalender,MONTH(MarMin1+32)=3),MarMin1+32,\"\"))","v":"2018-03-29"},{"$f":"IF(DAY(MarMin1)=1,IF(AND(YEAR(MarMin1+26)=TahunKalender,MONTH(MarMin1+26)=3),MarMin1+26,\"\"),IF(AND(YEAR(MarMin1+33)=TahunKalender,MONTH(MarMin1+33)=3),MarMin1+33,\"\"))","v":"2018-03-30"},{"$f":"IF(DAY(MarMin1)=1,IF(AND(YEAR(MarMin1+27)=TahunKalender,MONTH(MarMin1+27)=3),MarMin1+27,\"\"),IF(AND(YEAR(MarMin1+34)=TahunKalender,MONTH(MarMin1+34)=3),MarMin1+34,\"\"))","v":"2018-03-31"},{"$f":"IF(DAY(MarMin1)=1,IF(AND(YEAR(MarMin1+28)=TahunKalender,MONTH(MarMin1+28)=3),MarMin1+28,\"\"),IF(AND(YEAR(MarMin1+35)=TahunKalender,MONTH(MarMin1+35)=3),MarMin1+35,\"\"))","v":""}]
[]
[null,{"$f":"IF(DAY(MarMin1)=1,IF(AND(YEAR(MarMin1+29)=TahunKalender,MONTH(MarMin1+29)=3),MarMin1+29,\"\"),IF(AND(YEAR(MarMin1+36)=TahunKalender,MONTH(MarMin1+36)=3),MarMin1+36,\"\"))","v":""},{"$f":"IF(DAY(MarMin1)=1,IF(AND(YEAR(MarMin1+30)=TahunKalender,MONTH(MarMin1+30)=3),MarMin1+30,\"\"),IF(AND(YEAR(MarMin1+37)=TahunKalender,MONTH(MarMin1+37)=3),MarMin1+37,\"\"))","v":""},"CATATAN:"]

{"sheet":"Apr","index":3,"n_rows":15,"n_cols":8,"rows_kept":15,"merged":[[2,1,2,5],[14,3,14,7],[15,3,15,7]]}
[]
[]
[null,{"$f":"UPPER(TEXT(DATE(TahunKalender,4,1),\"mmmm yyyy\"))","v":"APRIL 2018"}]
[null,"SENIN","SELASA","RABU","KAMIS","JUMAT","SABTU","MINGGU"]
[null,{"$f":"IF(DAY(AprMin1)=1,\"\",IF(AND(YEAR(AprMin1+1)=TahunKalender,MONTH(AprMin1+1)=4),AprMin1+1,\"\"))","v":""},{"$f":"IF(DAY(AprMin1)=1,\"\",IF(AND(YEAR(AprMin1+2)=TahunKalender,MONTH(AprMin1+2)=4),AprMin1+2,\"\"))","v":""},{"$f":"IF(DAY(AprMin1)=1,\"\",IF(AND(YEAR(AprMin1+3)=TahunKalender,MONTH(AprMin1+3)=4),AprMin1+3,\"\"))","v":""},{"$f":"IF(DAY(AprMin1)=1,\"\",IF(AND(YEAR(AprMin1+4)=TahunKalender,MONTH(AprMin1+4)=4),AprMin1+4,\"\"))","v":""},{"$f":"IF(DAY(AprMin1)=1,\"\",IF(AND(YEAR(AprMin1+5)=TahunKalender,MONTH(AprMin1+5)=4),AprMin1+5,\"\"))","v":""},{"$f":"IF(DAY(AprMin1)=1,\"\",IF(AND(YEAR(AprMin1+6)=TahunKalender,MONTH(AprMin1+6)=4),AprMin1+6,\"\"))","v":""},{"$f":"IF(DAY(AprMin1)=1,IF(AND(YEAR(AprMin1)=TahunKalender,MONTH(AprMin1)=4),AprMin1,\"\"),IF(AND(YEAR(AprMin1+7)=TahunKalender,MONTH(AprMin1+7)=4),AprMin1+7,\"\"))","v":"2018-04-01"}]
[]
[null,{"$f":"IF(DAY(AprMin1)=1,IF(AND(YEAR(AprMin1+1)=TahunKalender,MONTH(AprMin1+1)=4),AprMin1+1,\"\"),IF(AND(YEAR(AprMin1+8)=TahunKalender,MONTH(AprMin1+8)=4),AprMin1+8,\"\"))","v":"2018-04-02"},{"$f":"IF(DAY(AprMin1)=1,IF(AND(YEAR(AprMin1+2)=TahunKalender,MONTH(AprMin1+2)=4),AprMin1+2,\"\"),IF(AND(YEAR(AprMin1+9)=TahunKalender,MONTH(AprMin1+9)=4),AprMin1+9,\"\"))","v":"2018-04-03"},{"$f":"IF(DAY(AprMin1)=1,IF(AND(YEAR(AprMin1+3)=TahunKalender,MONTH(AprMin1+3)=4),AprMin1+3,\"\"),IF(AND(YEAR(AprMin1+10)=TahunKalender,MONTH(AprMin1+10)=4),AprMin1+10,\"\"))","v":"2018-04-04"},{"$f":"IF(DAY(AprMin1)=1,IF(AND(YEAR(AprMin1+4)=TahunKalender,MONTH(AprMin1+4)=4),AprMin1+4,\"\"),IF(AND(YEAR(AprMin1+11)=TahunKalender,MONTH(AprMin1+11)=4),AprMin1+11,\"\"))","v":"2018-04-05"},{"$f":"IF(DAY(AprMin1)=1,IF(AND(YEAR(AprMin1+5)=TahunKalender,MONTH(AprMin1+5)=4),AprMin1+5,\"\"),IF(AND(YEAR(AprMin1+12)=TahunKalender,MONTH(AprMin1+12)=4),AprMin1+12,\"\"))","v":"2018-04-06"},{"$f":"IF(DAY(AprMin1)=1,IF(AND(YEAR(AprMin1+6)=TahunKalender,MONTH(AprMin1+6)=4),AprMin1+6,\"\"),IF(AND(YEAR(AprMin1+13)=TahunKalender,MONTH(AprMin1+13)=4),AprMin1+13,\"\"))","v":"2018-04-07"},{"$f":"IF(DAY(AprMin1)=1,IF(AND(YEAR(AprMin1+7)=TahunKalender,MONTH(AprMin1+7)=4),AprMin1+7,\"\"),IF(AND(YEAR(AprMin1+14)=TahunKalender,MONTH(AprMin1+14)=4),AprMin1+14,\"\"))","v":"2018-04-08"}]
[]
[null,{"$f":"IF(DAY(AprMin1)=1,IF(AND(YEAR(AprMin1+8)=TahunKalender,MONTH(AprMin1+8)=4),AprMin1+8,\"\"),IF(AND(YEAR(AprMin1+15)=TahunKalender,MONTH(AprMin1+15)=4),AprMin1+15,\"\"))","v":"2018-04-09"},{"$f":"IF(DAY(AprMin1)=1,IF(AND(YEAR(AprMin1+9)=TahunKalender,MONTH(AprMin1+9)=4),AprMin1+9,\"\"),IF(AND(YEAR(AprMin1+16)=TahunKalender,MONTH(AprMin1+16)=4),AprMin1+16,\"\"))","v":"2018-04-10"},{"$f":"IF(DAY(AprMin1)=1,IF(AND(YEAR(AprMin1+10)=TahunKalender,MONTH(AprMin1+10)=4),AprMin1+10,\"\"),IF(AND(YEAR(AprMin1+17)=TahunKalender,MONTH(AprMin1+17)=4),AprMin1+17,\"\"))","v":"2018-04-11"},{"$f":"IF(DAY(AprMin1)=1,IF(AND(YEAR(AprMin1+11)=TahunKalender,MONTH(AprMin1+11)=4),AprMin1+11,\"\"),IF(AND(YEAR(AprMin1+18)=TahunKalender,MONTH(AprMin1+18)=4),AprMin1+18,\"\"))","v":"2018-04-12"},{"$f":"IF(DAY(AprMin1)=1,IF(AND(YEAR(AprMin1+12)=TahunKalender,MONTH(AprMin1+12)=4),AprMin1+12,\"\"),IF(AND(YEAR(AprMin1+19)=TahunKalender,MONTH(AprMin1+19)=4),AprMin1+19,\"\"))","v":"2018-04-13"},{"$f":"IF(DAY(AprMin1)=1,IF(AND(YEAR(AprMin1+13)=TahunKalender,MONTH(AprMin1+13)=4),AprMin1+13,\"\"),IF(AND(YEAR(AprMin1+20)=TahunKalender,MONTH(AprMin1+20)=4),AprMin1+20,\"\"))","v":"2018-04-14"},{"$f":"IF(DAY(AprMin1)=1,IF(AND(YEAR(AprMin1+14)=TahunKalender,MONTH(AprMin1+14)=4),AprMin1+14,\"\"),IF(AND(YEAR(AprMin1+21)=TahunKalender,MONTH(AprMin1+21)=4),AprMin1+21,\"\"))","v":"2018-04-15"}]
[]
[null,{"$f":"IF(DAY(AprMin1)=1,IF(AND(YEAR(AprMin1+15)=TahunKalender,MONTH(AprMin1+15)=4),AprMin1+15,\"\"),IF(AND(YEAR(AprMin1+22)=TahunKalender,MONTH(AprMin1+22)=4),AprMin1+22,\"\"))","v":"2018-04-16"},{"$f":"IF(DAY(AprMin1)=1,IF(AND(YEAR(AprMin1+16)=TahunKalender,MONTH(AprMin1+16)=4),AprMin1+16,\"\"),IF(AND(YEAR(AprMin1+23)=TahunKalender,MONTH(AprMin1+23)=4),AprMin1+23,\"\"))","v":"2018-04-17"},{"$f":"IF(DAY(AprMin1)=1,IF(AND(YEAR(AprMin1+17)=TahunKalender,MONTH(AprMin1+17)=4),AprMin1+17,\"\"),IF(AND(YEAR(AprMin1+24)=TahunKalender,MONTH(AprMin1+24)=4),AprMin1+24,\"\"))","v":"2018-04-18"},{"$f":"IF(DAY(AprMin1)=1,IF(AND(YEAR(AprMin1+18)=TahunKalender,MONTH(AprMin1+18)=4),AprMin1+18,\"\"),IF(AND(YEAR(AprMin1+25)=TahunKalender,MONTH(AprMin1+25)=4),AprMin1+25,\"\"))","v":"2018-04-19"},{"$f":"IF(DAY(AprMin1)=1,IF(AND(YEAR(AprMin1+19)=TahunKalender,MONTH(AprMin1+19)=4),AprMin1+19,\"\"),IF(AND(YEAR(AprMin1+26)=TahunKalender,MONTH(AprMin1+26)=4),AprMin1+26,\"\"))","v":"2018-04-20"},{"$f":"IF(DAY(AprMin1)=1,IF(AND(YEAR(AprMin1+20)=TahunKalender,MONTH(AprMin1+20)=4),AprMin1+20,\"\"),IF(AND(YEAR(AprMin1+27)=TahunKalender,MONTH(AprMin1+27)=4),AprMin1+27,\"\"))","v":"2018-04-21"},{"$f":"IF(DAY(AprMin1)=1,IF(AND(YEAR(AprMin1+21)=TahunKalender,MONTH(AprMin1+21)=4),AprMin1+21,\"\"),IF(AND(YEAR(AprMin1+28)=TahunKalender,MONTH(AprMin1+28)=4),AprMin1+28,\"\"))","v":"2018-04-22"}]
[]
[null,{"$f":"IF(DAY(AprMin1)=1,IF(AND(YEAR(AprMin1+22)=TahunKalender,MONTH(AprMin1+22)=4),AprMin1+22,\"\"),IF(AND(YEAR(AprMin1+29)=TahunKalender,MONTH(AprMin1+29)=4),AprMin1+29,\"\"))","v":"2018-04-23"},{"$f":"IF(DAY(AprMin1)=1,IF(AND(YEAR(AprMin1+23)=TahunKalender,MONTH(AprMin1+23)=4),AprMin1+23,\"\"),IF(AND(YEAR(AprMin1+30)=TahunKalender,MONTH(AprMin1+30)=4),AprMin1+30,\"\"))","v":"2018-04-24"},{"$f":"IF(DAY(AprMin1)=1,IF(AND(YEAR(AprMin1+24)=TahunKalender,MONTH(AprMin1+24)=4),AprMin1+24,\"\"),IF(AND(YEAR(AprMin1+31)=TahunKalender,MONTH(AprMin1+31)=4),AprMin1+31,\"\"))","v":"2018-04-25"},{"$f":"IF(DAY(AprMin1)=1,IF(AND(YEAR(AprMin1+25)=TahunKalender,MONTH(AprMin1+25)=4),AprMin1+25,\"\"),IF(AND(YEAR(AprMin1+32)=TahunKalender,MONTH(AprMin1+32)=4),AprMin1+32,\"\"))","v":"2018-04-26"},{"$f":"IF(DAY(AprMin1)=1,IF(AND(YEAR(AprMin1+26)=TahunKalender,MONTH(AprMin1+26)=4),AprMin1+26,\"\"),IF(AND(YEAR(AprMin1+33)=TahunKalender,MONTH(AprMin1+33)=4),AprMin1+33,\"\"))","v":"2018-04-27"},{"$f":"IF(DAY(AprMin1)=1,IF(AND(YEAR(AprMin1+27)=TahunKalender,MONTH(AprMin1+27)=4),AprMin1+27,\"\"),IF(AND(YEAR(AprMin1+34)=TahunKalender,MONTH(AprMin1+34)=4),AprMin1+34,\"\"))","v":"2018-04-28"},{"$f":"IF(DAY(AprMin1)=1,IF(AND(YEAR(AprMin1+28)=TahunKalender,MONTH(AprMin1+28)=4),AprMin1+28,\"\"),IF(AND(YEAR(AprMin1+35)=TahunKalender,MONTH(AprMin1+35)=4),AprMin1+35,\"\"))","v":"2018-04-29"}]
[]
[null,{"$f":"IF(DAY(AprMin1)=1,IF(AND(YEAR(AprMin1+29)=TahunKalender,MONTH(AprMin1+29)=4),AprMin1+29,\"\"),IF(AND(YEAR(AprMin1+36)=TahunKalender,MONTH(AprMin1+36)=4),AprMin1+36,\"\"))","v":"2018-04-30"},{"$f":"IF(DAY(AprMin1)=1,IF(AND(YEAR(AprMin1+30)=TahunKalender,MONTH(AprMin1+30)=4),AprMin1+30,\"\"),IF(AND(YEAR(AprMin1+37)=TahunKalender,MONTH(AprMin1+37)=4),AprMin1+37,\"\"))","v":""},"CATATAN:"]

{"sheet":"Mei","index":4,"n_rows":15,"n_cols":8,"rows_kept":15,"merged":[[2,1,2,5],[14,3,14,7],[15,3,15,7]]}
[]
[]
[null,{"$f":"UPPER(TEXT(DATE(TahunKalender,5,1),\"mmmm yyyy\"))","v":"MEI 2018"}]
[null,"SENIN","SELASA","RABU","KAMIS","JUMAT","SABTU","MINGGU"]
[null,{"$f":"IF(DAY(MeiMin1)=1,\"\",IF(AND(YEAR(MeiMin1+1)=TahunKalender,MONTH(MeiMin1+1)=5),MeiMin1+1,\"\"))","v":""},{"$f":"IF(DAY(MeiMin1)=1,\"\",IF(AND(YEAR(MeiMin1+2)=TahunKalender,MONTH(MeiMin1+2)=5),MeiMin1+2,\"\"))","v":"2018-05-01"},{"$f":"IF(DAY(MeiMin1)=1,\"\",IF(AND(YEAR(MeiMin1+3)=TahunKalender,MONTH(MeiMin1+3)=5),MeiMin1+3,\"\"))","v":"2018-05-02"},{"$f":"IF(DAY(MeiMin1)=1,\"\",IF(AND(YEAR(MeiMin1+4)=TahunKalender,MONTH(MeiMin1+4)=5),MeiMin1+4,\"\"))","v":"2018-05-03"},{"$f":"IF(DAY(MeiMin1)=1,\"\",IF(AND(YEAR(MeiMin1+5)=TahunKalender,MONTH(MeiMin1+5)=5),MeiMin1+5,\"\"))","v":"2018-05-04"},{"$f":"IF(DAY(MeiMin1)=1,\"\",IF(AND(YEAR(MeiMin1+6)=TahunKalender,MONTH(MeiMin1+6)=5),MeiMin1+6,\"\"))","v":"2018-05-05"},{"$f":"IF(DAY(MeiMin1)=1,IF(AND(YEAR(MeiMin1)=TahunKalender,MONTH(MeiMin1)=5),MeiMin1,\"\"),IF(AND(YEAR(MeiMin1+7)=TahunKalender,MONTH(MeiMin1+7)=5),MeiMin1+7,\"\"))","v":"2018-05-06"}]
[]
[null,{"$f":"IF(DAY(MeiMin1)=1,IF(AND(YEAR(MeiMin1+1)=TahunKalender,MONTH(MeiMin1+1)=5),MeiMin1+1,\"\"),IF(AND(YEAR(MeiMin1+8)=TahunKalender,MONTH(MeiMin1+8)=5),MeiMin1+8,\"\"))","v":"2018-05-07"},{"$f":"IF(DAY(MeiMin1)=1,IF(AND(YEAR(MeiMin1+2)=TahunKalender,MONTH(MeiMin1+2)=5),MeiMin1+2,\"\"),IF(AND(YEAR(MeiMin1+9)=TahunKalender,MONTH(MeiMin1+9)=5),MeiMin1+9,\"\"))","v":"2018-05-08"},{"$f":"IF(DAY(MeiMin1)=1,IF(AND(YEAR(MeiMin1+3)=TahunKalender,MONTH(MeiMin1+3)=5),MeiMin1+3,\"\"),IF(AND(YEAR(MeiMin1+10)=TahunKalender,MONTH(MeiMin1+10)=5),MeiMin1+10,\"\"))","v":"2018-05-09"},{"$f":"IF(DAY(MeiMin1)=1,IF(AND(YEAR(MeiMin1+4)=TahunKalender,MONTH(MeiMin1+4)=5),MeiMin1+4,\"\"),IF(AND(YEAR(MeiMin1+11)=TahunKalender,MONTH(MeiMin1+11)=5),MeiMin1+11,\"\"))","v":"2018-05-10"},{"$f":"IF(DAY(MeiMin1)=1,IF(AND(YEAR(MeiMin1+5)=TahunKalender,MONTH(MeiMin1+5)=5),MeiMin1+5,\"\"),IF(AND(YEAR(MeiMin1+12)=TahunKalender,MONTH(MeiMin1+12)=5),MeiMin1+12,\"\"))","v":"2018-05-11"},{"$f":"IF(DAY(MeiMin1)=1,IF(AND(YEAR(MeiMin1+6)=TahunKalender,MONTH(MeiMin1+6)=5),MeiMin1+6,\"\"),IF(AND(YEAR(MeiMin1+13)=TahunKalender,MONTH(MeiMin1+13)=5),MeiMin1+13,\"\"))","v":"2018-05-12"},{"$f":"IF(DAY(MeiMin1)=1,IF(AND(YEAR(MeiMin1+7)=TahunKalender,MONTH(MeiMin1+7)=5),MeiMin1+7,\"\"),IF(AND(YEAR(MeiMin1+14)=TahunKalender,MONTH(MeiMin1+14)=5),MeiMin1+14,\"\"))","v":"2018-05-13"}]
[]
[null,{"$f":"IF(DAY(MeiMin1)=1,IF(AND(YEAR(MeiMin1+8)=TahunKalender,MONTH(MeiMin1+8)=5),MeiMin1+8,\"\"),IF(AND(YEAR(MeiMin1+15)=TahunKalender,MONTH(MeiMin1+15)=5),MeiMin1+15,\"\"))","v":"2018-05-14"},{"$f":"IF(DAY(MeiMin1)=1,IF(AND(YEAR(MeiMin1+9)=TahunKalender,MONTH(MeiMin1+9)=5),MeiMin1+9,\"\"),IF(AND(YEAR(MeiMin1+16)=TahunKalender,MONTH(MeiMin1+16)=5),MeiMin1+16,\"\"))","v":"2018-05-15"},{"$f":"IF(DAY(MeiMin1)=1,IF(AND(YEAR(MeiMin1+10)=TahunKalender,MONTH(MeiMin1+10)=5),MeiMin1+10,\"\"),IF(AND(YEAR(MeiMin1+17)=TahunKalender,MONTH(MeiMin1+17)=5),MeiMin1+17,\"\"))","v":"2018-05-16"},{"$f":"IF(DAY(MeiMin1)=1,IF(AND(YEAR(MeiMin1+11)=TahunKalender,MONTH(MeiMin1+11)=5),MeiMin1+11,\"\"),IF(AND(YEAR(MeiMin1+18)=TahunKalender,MONTH(MeiMin1+18)=5),MeiMin1+18,\"\"))","v":"2018-05-17"},{"$f":"IF(DAY(MeiMin1)=1,IF(AND(YEAR(MeiMin1+12)=TahunKalender,MONTH(MeiMin1+12)=5),MeiMin1+12,\"\"),IF(AND(YEAR(MeiMin1+19)=TahunKalender,MONTH(MeiMin1+19)=5),MeiMin1+19,\"\"))","v":"2018-05-18"},{"$f":"IF(DAY(MeiMin1)=1,IF(AND(YEAR(MeiMin1+13)=TahunKalender,MONTH(MeiMin1+13)=5),MeiMin1+13,\"\"),IF(AND(YEAR(MeiMin1+20)=TahunKalender,MONTH(MeiMin1+20)=5),MeiMin1+20,\"\"))","v":"2018-05-19"},{"$f":"IF(DAY(MeiMin1)=1,IF(AND(YEAR(MeiMin1+14)=TahunKalender,MONTH(MeiMin1+14)=5),MeiMin1+14,\"\"),IF(AND(YEAR(MeiMin1+21)=TahunKalender,MONTH(MeiMin1+21)=5),MeiMin1+21,\"\"))","v":"2018-05-20"}]
[]
[null,{"$f":"IF(DAY(MeiMin1)=1,IF(AND(YEAR(MeiMin1+15)=TahunKalender,MONTH(MeiMin1+15)=5),MeiMin1+15,\"\"),IF(AND(YEAR(MeiMin1+22)=TahunKalender,MONTH(MeiMin1+22)=5),MeiMin1+22,\"\"))","v":"2018-05-21"},{"$f":"IF(DAY(MeiMin1)=1,IF(AND(YEAR(MeiMin1+16)=TahunKalender,MONTH(MeiMin1+16)=5),MeiMin1+16,\"\"),IF(AND(YEAR(MeiMin1+23)=TahunKalender,MONTH(MeiMin1+23)=5),MeiMin1+23,\"\"))","v":"2018-05-22"},{"$f":"IF(DAY(MeiMin1)=1,IF(AND(YEAR(MeiMin1+17)=TahunKalender,MONTH(MeiMin1+17)=5),MeiMin1+17,\"\"),IF(AND(YEAR(MeiMin1+24)=TahunKalender,MONTH(MeiMin1+24)=5),MeiMin1+24,\"\"))","v":"2018-05-23"},{"$f":"IF(DAY(MeiMin1)=1,IF(AND(YEAR(MeiMin1+18)=TahunKalender,MONTH(MeiMin1+18)=5),MeiMin1+18,\"\"),IF(AND(YEAR(MeiMin1+25)=TahunKalender,MONTH(MeiMin1+25)=5),MeiMin1+25,\"\"))","v":"2018-05-24"},{"$f":"IF(DAY(MeiMin1)=1,IF(AND(YEAR(MeiMin1+19)=TahunKalender,MONTH(MeiMin1+19)=5),MeiMin1+19,\"\"),IF(AND(YEAR(MeiMin1+26)=TahunKalender,MONTH(MeiMin1+26)=5),MeiMin1+26,\"\"))","v":"2018-05-25"},{"$f":"IF(DAY(MeiMin1)=1,IF(AND(YEAR(MeiMin1+20)=TahunKalender,MONTH(MeiMin1+20)=5),MeiMin1+20,\"\"),IF(AND(YEAR(MeiMin1+27)=TahunKalender,MONTH(MeiMin1+27)=5),MeiMin1+27,\"\"))","v":"2018-05-26"},{"$f":"IF(DAY(MeiMin1)=1,IF(AND(YEAR(MeiMin1+21)=TahunKalender,MONTH(MeiMin1+21)=5),MeiMin1+21,\"\"),IF(AND(YEAR(MeiMin1+28)=TahunKalender,MONTH(MeiMin1+28)=5),MeiMin1+28,\"\"))","v":"2018-05-27"}]
[]
[null,{"$f":"IF(DAY(MeiMin1)=1,IF(AND(YEAR(MeiMin1+22)=TahunKalender,MONTH(MeiMin1+22)=5),MeiMin1+22,\"\"),IF(AND(YEAR(MeiMin1+29)=TahunKalender,MONTH(MeiMin1+29)=5),MeiMin1+29,\"\"))","v":"2018-05-28"},{"$f":"IF(DAY(MeiMin1)=1,IF(AND(YEAR(MeiMin1+23)=TahunKalender,MONTH(MeiMin1+23)=5),MeiMin1+23,\"\"),IF(AND(YEAR(MeiMin1+30)=TahunKalender,MONTH(MeiMin1+30)=5),MeiMin1+30,\"\"))","v":"2018-05-29"},{"$f":"IF(DAY(MeiMin1)=1,IF(AND(YEAR(MeiMin1+24)=TahunKalender,MONTH(MeiMin1+24)=5),MeiMin1+24,\"\"),IF(AND(YEAR(MeiMin1+31)=TahunKalender,MONTH(MeiMin1+31)=5),MeiMin1+31,\"\"))","v":"2018-05-30"},{"$f":"IF(DAY(MeiMin1)=1,IF(AND(YEAR(MeiMin1+25)=TahunKalender,MONTH(MeiMin1+25)=5),MeiMin1+25,\"\"),IF(AND(YEAR(MeiMin1+32)=TahunKalender,MONTH(MeiMin1+32)=5),MeiMin1+32,\"\"))","v":"2018-05-31"},{"$f":"IF(DAY(MeiMin1)=1,IF(AND(YEAR(MeiMin1+26)=TahunKalender,MONTH(MeiMin1+26)=5),MeiMin1+26,\"\"),IF(AND(YEAR(MeiMin1+33)=TahunKalender,MONTH(MeiMin1+33)=5),MeiMin1+33,\"\"))","v":""},{"$f":"IF(DAY(MeiMin1)=1,IF(AND(YEAR(MeiMin1+27)=TahunKalender,MONTH(MeiMin1+27)=5),MeiMin1+27,\"\"),IF(AND(YEAR(MeiMin1+34)=TahunKalender,MONTH(MeiMin1+34)=5),MeiMin1+34,\"\"))","v":""},{"$f":"IF(DAY(MeiMin1)=1,IF(AND(YEAR(MeiMin1+28)=TahunKalender,MONTH(MeiMin1+28)=5),MeiMin1+28,\"\"),IF(AND(YEAR(MeiMin1+35)=TahunKalender,MONTH(MeiMin1+35)=5),MeiMin1+35,\"\"))","v":""}]
[]
[null,{"$f":"IF(DAY(MeiMin1)=1,IF(AND(YEAR(MeiMin1+29)=TahunKalender,MONTH(MeiMin1+29)=5),MeiMin1+29,\"\"),IF(AND(YEAR(MeiMin1+36)=TahunKalender,MONTH(MeiMin1+36)=5),MeiMin1+36,\"\"))","v":""},{"$f":"IF(DAY(MeiMin1)=1,IF(AND(YEAR(MeiMin1+30)=TahunKalender,MONTH(MeiMin1+30)=5),MeiMin1+30,\"\"),IF(AND(YEAR(MeiMin1+37)=TahunKalender,MONTH(MeiMin1+37)=5),MeiMin1+37,\"\"))","v":""},"CATATAN:"]

{"sheet":"Jun","index":5,"n_rows":15,"n_cols":8,"rows_kept":15,"merged":[[2,1,2,5],[14,3,14,7],[15,3,15,7]]}
[]
[]
[null,{"$f":"UPPER(TEXT(DATE(TahunKalender,6,1),\"mmmm yyyy\"))","v":"JUNI 2018"}]
[null,"SENIN","SELASA","RABU","KAMIS","JUMAT","SABTU","MINGGU"]
[null,{"$f":"IF(DAY(JunMin1)=1,\"\",IF(AND(YEAR(JunMin1+1)=TahunKalender,MONTH(JunMin1+1)=6),JunMin1+1,\"\"))","v":""},{"$f":"IF(DAY(JunMin1)=1,\"\",IF(AND(YEAR(JunMin1+2)=TahunKalender,MONTH(JunMin1+2)=6),JunMin1+2,\"\"))","v":""},{"$f":"IF(DAY(JunMin1)=1,\"\",IF(AND(YEAR(JunMin1+3)=TahunKalender,MONTH(JunMin1+3)=6),JunMin1+3,\"\"))","v":""},{"$f":"IF(DAY(JunMin1)=1,\"\",IF(AND(YEAR(JunMin1+4)=TahunKalender,MONTH(JunMin1+4)=6),JunMin1+4,\"\"))","v":""},{"$f":"IF(DAY(JunMin1)=1,\"\",IF(AND(YEAR(JunMin1+5)=TahunKalender,MONTH(JunMin1+5)=6),JunMin1+5,\"\"))","v":"2018-06-01"},{"$f":"IF(DAY(JunMin1)=1,\"\",IF(AND(YEAR(JunMin1+6)=TahunKalender,MONTH(JunMin1+6)=6),JunMin1+6,\"\"))","v":"2018-06-02"},{"$f":"IF(DAY(JunMin1)=1,IF(AND(YEAR(JunMin1)=TahunKalender,MONTH(JunMin1)=6),JunMin1,\"\"),IF(AND(YEAR(JunMin1+7)=TahunKalender,MONTH(JunMin1+7)=6),JunMin1+7,\"\"))","v":"2018-06-03"}]
[]
[null,{"$f":"IF(DAY(JunMin1)=1,IF(AND(YEAR(JunMin1+1)=TahunKalender,MONTH(JunMin1+1)=6),JunMin1+1,\"\"),IF(AND(YEAR(JunMin1+8)=TahunKalender,MONTH(JunMin1+8)=6),JunMin1+8,\"\"))","v":"2018-06-04"},{"$f":"IF(DAY(JunMin1)=1,IF(AND(YEAR(JunMin1+2)=TahunKalender,MONTH(JunMin1+2)=6),JunMin1+2,\"\"),IF(AND(YEAR(JunMin1+9)=TahunKalender,MONTH(JunMin1+9)=6),JunMin1+9,\"\"))","v":"2018-06-05"},{"$f":"IF(DAY(JunMin1)=1,IF(AND(YEAR(JunMin1+3)=TahunKalender,MONTH(JunMin1+3)=6),JunMin1+3,\"\"),IF(AND(YEAR(JunMin1+10)=TahunKalender,MONTH(JunMin1+10)=6),JunMin1+10,\"\"))","v":"2018-06-06"},{"$f":"IF(DAY(JunMin1)=1,IF(AND(YEAR(JunMin1+4)=TahunKalender,MONTH(JunMin1+4)=6),JunMin1+4,\"\"),IF(AND(YEAR(JunMin1+11)=TahunKalender,MONTH(JunMin1+11)=6),JunMin1+11,\"\"))","v":"2018-06-07"},{"$f":"IF(DAY(JunMin1)=1,IF(AND(YEAR(JunMin1+5)=TahunKalender,MONTH(JunMin1+5)=6),JunMin1+5,\"\"),IF(AND(YEAR(JunMin1+12)=TahunKalender,MONTH(JunMin1+12)=6),JunMin1+12,\"\"))","v":"2018-06-08"},{"$f":"IF(DAY(JunMin1)=1,IF(AND(YEAR(JunMin1+6)=TahunKalender,MONTH(JunMin1+6)=6),JunMin1+6,\"\"),IF(AND(YEAR(JunMin1+13)=TahunKalender,MONTH(JunMin1+13)=6),JunMin1+13,\"\"))","v":"2018-06-09"},{"$f":"IF(DAY(JunMin1)=1,IF(AND(YEAR(JunMin1+7)=TahunKalender,MONTH(JunMin1+7)=6),JunMin1+7,\"\"),IF(AND(YEAR(JunMin1+14)=TahunKalender,MONTH(JunMin1+14)=6),JunMin1+14,\"\"))","v":"2018-06-10"}]
[]
[null,{"$f":"IF(DAY(JunMin1)=1,IF(AND(YEAR(JunMin1+8)=TahunKalender,MONTH(JunMin1+8)=6),JunMin1+8,\"\"),IF(AND(YEAR(JunMin1+15)=TahunKalender,MONTH(JunMin1+15)=6),JunMin1+15,\"\"))","v":"2018-06-11"},{"$f":"IF(DAY(JunMin1)=1,IF(AND(YEAR(JunMin1+9)=TahunKalender,MONTH(JunMin1+9)=6),JunMin1+9,\"\"),IF(AND(YEAR(JunMin1+16)=TahunKalender,MONTH(JunMin1+16)=6),JunMin1+16,\"\"))","v":"2018-06-12"},{"$f":"IF(DAY(JunMin1)=1,IF(AND(YEAR(JunMin1+10)=TahunKalender,MONTH(JunMin1+10)=6),JunMin1+10,\"\"),IF(AND(YEAR(JunMin1+17)=TahunKalender,MONTH(JunMin1+17)=6),JunMin1+17,\"\"))","v":"2018-06-13"},{"$f":"IF(DAY(JunMin1)=1,IF(AND(YEAR(JunMin1+11)=TahunKalender,MONTH(JunMin1+11)=6),JunMin1+11,\"\"),IF(AND(YEAR(JunMin1+18)=TahunKalender,MONTH(JunMin1+18)=6),JunMin1+18,\"\"))","v":"2018-06-14"},{"$f":"IF(DAY(JunMin1)=1,IF(AND(YEAR(JunMin1+12)=TahunKalender,MONTH(JunMin1+12)=6),JunMin1+12,\"\"),IF(AND(YEAR(JunMin1+19)=TahunKalender,MONTH(JunMin1+19)=6),JunMin1+19,\"\"))","v":"2018-06-15"},{"$f":"IF(DAY(JunMin1)=1,IF(AND(YEAR(JunMin1+13)=TahunKalender,MONTH(JunMin1+13)=6),JunMin1+13,\"\"),IF(AND(YEAR(JunMin1+20)=TahunKalender,MONTH(JunMin1+20)=6),JunMin1+20,\"\"))","v":"2018-06-16"},{"$f":"IF(DAY(JunMin1)=1,IF(AND(YEAR(JunMin1+14)=TahunKalender,MONTH(JunMin1+14)=6),JunMin1+14,\"\"),IF(AND(YEAR(JunMin1+21)=TahunKalender,MONTH(JunMin1+21)=6),JunMin1+21,\"\"))","v":"2018-06-17"}]
[]
[null,{"$f":"IF(DAY(JunMin1)=1,IF(AND(YEAR(JunMin1+15)=TahunKalender,MONTH(JunMin1+15)=6),JunMin1+15,\"\"),IF(AND(YEAR(JunMin1+22)=TahunKalender,MONTH(JunMin1+22)=6),JunMin1+22,\"\"))","v":"2018-06-18"},{"$f":"IF(DAY(JunMin1)=1,IF(AND(YEAR(JunMin1+16)=TahunKalender,MONTH(JunMin1+16)=6),JunMin1+16,\"\"),IF(AND(YEAR(JunMin1+23)=TahunKalender,MONTH(JunMin1+23)=6),JunMin1+23,\"\"))","v":"2018-06-19"},{"$f":"IF(DAY(JunMin1)=1,IF(AND(YEAR(JunMin1+17)=TahunKalender,MONTH(JunMin1+17)=6),JunMin1+17,\"\"),IF(AND(YEAR(JunMin1+24)=TahunKalender,MONTH(JunMin1+24)=6),JunMin1+24,\"\"))","v":"2018-06-20"},{"$f":"IF(DAY(JunMin1)=1,IF(AND(YEAR(JunMin1+18)=TahunKalender,MONTH(JunMin1+18)=6),JunMin1+18,\"\"),IF(AND(YEAR(JunMin1+25)=TahunKalender,MONTH(JunMin1+25)=6),JunMin1+25,\"\"))","v":"2018-06-21"},{"$f":"IF(DAY(JunMin1)=1,IF(AND(YEAR(JunMin1+19)=TahunKalender,MONTH(JunMin1+19)=6),JunMin1+19,\"\"),IF(AND(YEAR(JunMin1+26)=TahunKalender,MONTH(JunMin1+26)=6),JunMin1+26,\"\"))","v":"2018-06-22"},{"$f":"IF(DAY(JunMin1)=1,IF(AND(YEAR(JunMin1+20)=TahunKalender,MONTH(JunMin1+20)=6),JunMin1+20,\"\"),IF(AND(YEAR(JunMin1+27)=TahunKalender,MONTH(JunMin1+27)=6),JunMin1+27,\"\"))","v":"2018-06-23"},{"$f":"IF(DAY(JunMin1)=1,IF(AND(YEAR(JunMin1+21)=TahunKalender,MONTH(JunMin1+21)=6),JunMin1+21,\"\"),IF(AND(YEAR(JunMin1+28)=TahunKalender,MONTH(JunMin1+28)=6),JunMin1+28,\"\"))","v":"2018-06-24"}]
[]
[null,{"$f":"IF(DAY(JunMin1)=1,IF(AND(YEAR(JunMin1+22)=TahunKalender,MONTH(JunMin1+22)=6),JunMin1+22,\"\"),IF(AND(YEAR(JunMin1+29)=TahunKalender,MONTH(JunMin1+29)=6),JunMin1+29,\"\"))","v":"2018-06-25"},{"$f":"IF(DAY(JunMin1)=1,IF(AND(YEAR(JunMin1+23)=TahunKalender,MONTH(JunMin1+23)=6),JunMin1+23,\"\"),IF(AND(YEAR(JunMin1+30)=TahunKalender,MONTH(JunMin1+30)=6),JunMin1+30,\"\"))","v":"2018-06-26"},{"$f":"IF(DAY(JunMin1)=1,IF(AND(YEAR(JunMin1+24)=TahunKalender,MONTH(JunMin1+24)=6),JunMin1+24,\"\"),IF(AND(YEAR(JunMin1+31)=TahunKalender,MONTH(JunMin1+31)=6),JunMin1+31,\"\"))","v":"2018-06-27"},{"$f":"IF(DAY(JunMin1)=1,IF(AND(YEAR(JunMin1+25)=TahunKalender,MONTH(JunMin1+25)=6),JunMin1+25,\"\"),IF(AND(YEAR(JunMin1+32)=TahunKalender,MONTH(JunMin1+32)=6),JunMin1+32,\"\"))","v":"2018-06-28"},{"$f":"IF(DAY(JunMin1)=1,IF(AND(YEAR(JunMin1+26)=TahunKalender,MONTH(JunMin1+26)=6),JunMin1+26,\"\"),IF(AND(YEAR(JunMin1+33)=TahunKalender,MONTH(JunMin1+33)=6),JunMin1+33,\"\"))","v":"2018-06-29"},{"$f":"IF(DAY(JunMin1)=1,IF(AND(YEAR(JunMin1+27)=TahunKalender,MONTH(JunMin1+27)=6),JunMin1+27,\"\"),IF(AND(YEAR(JunMin1+34)=TahunKalender,MONTH(JunMin1+34)=6),JunMin1+34,\"\"))","v":"2018-06-30"},{"$f":"IF(DAY(JunMin1)=1,IF(AND(YEAR(JunMin1+28)=TahunKalender,MONTH(JunMin1+28)=6),JunMin1+28,\"\"),IF(AND(YEAR(JunMin1+35)=TahunKalender,MONTH(JunMin1+35)=6),JunMin1+35,\"\"))","v":""}]
[]
[null,{"$f":"IF(DAY(JunMin1)=1,IF(AND(YEAR(JunMin1+29)=TahunKalender,MONTH(JunMin1+29)=6),JunMin1+29,\"\"),IF(AND(YEAR(JunMin1+36)=TahunKalender,MONTH(JunMin1+36)=6),JunMin1+36,\"\"))","v":""},{"$f":"IF(DAY(JunMin1)=1,IF(AND(YEAR(JunMin1+30)=TahunKalender,MONTH(JunMin1+30)=6),JunMin1+30,\"\"),IF(AND(YEAR(JunMin1+37)=TahunKalender,MONTH(JunMin1+37)=6),JunMin1+37,\"\"))","v":""},"CATATAN:"]

{"sheet":"Jul","index":6,"n_rows":15,"n_cols":8,"rows_kept":15,"merged":[[2,1,2,5],[14,3,14,7],[15,3,15,7]]}
[]
[]
[null,{"$f":"UPPER(TEXT(DATE(TahunKalender,7,1),\"mmmm yyyy\"))","v":"JULI 2018"}]
[null,"SENIN","SELASA","RABU","KAMIS","JUMAT","SABTU","MINGGU"]
[null,{"$f":"IF(DAY(JulMin1)=1,\"\",IF(AND(YEAR(JulMin1+1)=TahunKalender,MONTH(JulMin1+1)=7),JulMin1+1,\"\"))","v":""},{"$f":"IF(DAY(JulMin1)=1,\"\",IF(AND(YEAR(JulMin1+2)=TahunKalender,MONTH(JulMin1+2)=7),JulMin1+2,\"\"))","v":""},{"$f":"IF(DAY(JulMin1)=1,\"\",IF(AND(YEAR(JulMin1+3)=TahunKalender,MONTH(JulMin1+3)=7),JulMin1+3,\"\"))","v":""},{"$f":"IF(DAY(JulMin1)=1,\"\",IF(AND(YEAR(JulMin1+4)=TahunKalender,MONTH(JulMin1+4)=7),JulMin1+4,\"\"))","v":""},{"$f":"IF(DAY(JulMin1)=1,\"\",IF(AND(YEAR(JulMin1+5)=TahunKalender,MONTH(JulMin1+5)=7),JulMin1+5,\"\"))","v":""},{"$f":"IF(DAY(JulMin1)=1,\"\",IF(AND(YEAR(JulMin1+6)=TahunKalender,MONTH(JulMin1+6)=7),JulMin1+6,\"\"))","v":""},{"$f":"IF(DAY(JulMin1)=1,IF(AND(YEAR(JulMin1)=TahunKalender,MONTH(JulMin1)=7),JulMin1,\"\"),IF(AND(YEAR(JulMin1+7)=TahunKalender,MONTH(JulMin1+7)=7),JulMin1+7,\"\"))","v":"2018-07-01"}]
[]
[null,{"$f":"IF(DAY(JulMin1)=1,IF(AND(YEAR(JulMin1+1)=TahunKalender,MONTH(JulMin1+1)=7),JulMin1+1,\"\"),IF(AND(YEAR(JulMin1+8)=TahunKalender,MONTH(JulMin1+8)=7),JulMin1+8,\"\"))","v":"2018-07-02"},{"$f":"IF(DAY(JulMin1)=1,IF(AND(YEAR(JulMin1+2)=TahunKalender,MONTH(JulMin1+2)=7),JulMin1+2,\"\"),IF(AND(YEAR(JulMin1+9)=TahunKalender,MONTH(JulMin1+9)=7),JulMin1+9,\"\"))","v":"2018-07-03"},{"$f":"IF(DAY(JulMin1)=1,IF(AND(YEAR(JulMin1+3)=TahunKalender,MONTH(JulMin1+3)=7),JulMin1+3,\"\"),IF(AND(YEAR(JulMin1+10)=TahunKalender,MONTH(JulMin1+10)=7),JulMin1+10,\"\"))","v":"2018-07-04"},{"$f":"IF(DAY(JulMin1)=1,IF(AND(YEAR(JulMin1+4)=TahunKalender,MONTH(JulMin1+4)=7),JulMin1+4,\"\"),IF(AND(YEAR(JulMin1+11)=TahunKalender,MONTH(JulMin1+11)=7),JulMin1+11,\"\"))","v":"2018-07-05"},{"$f":"IF(DAY(JulMin1)=1,IF(AND(YEAR(JulMin1+5)=TahunKalender,MONTH(JulMin1+5)=7),JulMin1+5,\"\"),IF(AND(YEAR(JulMin1+12)=TahunKalender,MONTH(JulMin1+12)=7),JulMin1+12,\"\"))","v":"2018-07-06"},{"$f":"IF(DAY(JulMin1)=1,IF(AND(YEAR(JulMin1+6)=TahunKalender,MONTH(JulMin1+6)=7),JulMin1+6,\"\"),IF(AND(YEAR(JulMin1+13)=TahunKalender,MONTH(JulMin1+13)=7),JulMin1+13,\"\"))","v":"2018-07-07"},{"$f":"IF(DAY(JulMin1)=1,IF(AND(YEAR(JulMin1+7)=TahunKalender,MONTH(JulMin1+7)=7),JulMin1+7,\"\"),IF(AND(YEAR(JulMin1+14)=TahunKalender,MONTH(JulMin1+14)=7),JulMin1+14,\"\"))","v":"2018-07-08"}]
[]
[null,{"$f":"IF(DAY(JulMin1)=1,IF(AND(YEAR(JulMin1+8)=TahunKalender,MONTH(JulMin1+8)=7),JulMin1+8,\"\"),IF(AND(YEAR(JulMin1+15)=TahunKalender,MONTH(JulMin1+15)=7),JulMin1+15,\"\"))","v":"2018-07-09"},{"$f":"IF(DAY(JulMin1)=1,IF(AND(YEAR(JulMin1+9)=TahunKalender,MONTH(JulMin1+9)=7),JulMin1+9,\"\"),IF(AND(YEAR(JulMin1+16)=TahunKalender,MONTH(JulMin1+16)=7),JulMin1+16,\"\"))","v":"2018-07-10"},{"$f":"IF(DAY(JulMin1)=1,IF(AND(YEAR(JulMin1+10)=TahunKalender,MONTH(JulMin1+10)=7),JulMin1+10,\"\"),IF(AND(YEAR(JulMin1+17)=TahunKalender,MONTH(JulMin1+17)=7),JulMin1+17,\"\"))","v":"2018-07-11"},{"$f":"IF(DAY(JulMin1)=1,IF(AND(YEAR(JulMin1+11)=TahunKalender,MONTH(JulMin1+11)=7),JulMin1+11,\"\"),IF(AND(YEAR(JulMin1+18)=TahunKalender,MONTH(JulMin1+18)=7),JulMin1+18,\"\"))","v":"2018-07-12"},{"$f":"IF(DAY(JulMin1)=1,IF(AND(YEAR(JulMin1+12)=TahunKalender,MONTH(JulMin1+12)=7),JulMin1+12,\"\"),IF(AND(YEAR(JulMin1+19)=TahunKalender,MONTH(JulMin1+19)=7),JulMin1+19,\"\"))","v":"2018-07-13"},{"$f":"IF(DAY(JulMin1)=1,IF(AND(YEAR(JulMin1+13)=TahunKalender,MONTH(JulMin1+13)=7),JulMin1+13,\"\"),IF(AND(YEAR(JulMin1+20)=TahunKalender,MONTH(JulMin1+20)=7),JulMin1+20,\"\"))","v":"2018-07-14"},{"$f":"IF(DAY(JulMin1)=1,IF(AND(YEAR(JulMin1+14)=TahunKalender,MONTH(JulMin1+14)=7),JulMin1+14,\"\"),IF(AND(YEAR(JulMin1+21)=TahunKalender,MONTH(JulMin1+21)=7),JulMin1+21,\"\"))","v":"2018-07-15"}]
[]
[null,{"$f":"IF(DAY(JulMin1)=1,IF(AND(YEAR(JulMin1+15)=TahunKalender,MONTH(JulMin1+15)=7),JulMin1+15,\"\"),IF(AND(YEAR(JulMin1+22)=TahunKalender,MONTH(JulMin1+22)=7),JulMin1+22,\"\"))","v":"2018-07-16"},{"$f":"IF(DAY(JulMin1)=1,IF(AND(YEAR(JulMin1+16)=TahunKalender,MONTH(JulMin1+16)=7),JulMin1+16,\"\"),IF(AND(YEAR(JulMin1+23)=TahunKalender,MONTH(JulMin1+23)=7),JulMin1+23,\"\"))","v":"2018-07-17"},{"$f":"IF(DAY(JulMin1)=1,IF(AND(YEAR(JulMin1+17)=TahunKalender,MONTH(JulMin1+17)=7),JulMin1+17,\"\"),IF(AND(YEAR(JulMin1+24)=TahunKalender,MONTH(JulMin1+24)=7),JulMin1+24,\"\"))","v":"2018-07-18"},{"$f":"IF(DAY(JulMin1)=1,IF(AND(YEAR(JulMin1+18)=TahunKalender,MONTH(JulMin1+18)=7),JulMin1+18,\"\"),IF(AND(YEAR(JulMin1+25)=TahunKalender,MONTH(JulMin1+25)=7),JulMin1+25,\"\"))","v":"2018-07-19"},{"$f":"IF(DAY(JulMin1)=1,IF(AND(YEAR(JulMin1+19)=TahunKalender,MONTH(JulMin1+19)=7),JulMin1+19,\"\"),IF(AND(YEAR(JulMin1+26)=TahunKalender,MONTH(JulMin1+26)=7),JulMin1+26,\"\"))","v":"2018-07-20"},{"$f":"IF(DAY(JulMin1)=1,IF(AND(YEAR(JulMin1+20)=TahunKalender,MONTH(JulMin1+20)=7),JulMin1+20,\"\"),IF(AND(YEAR(JulMin1+27)=TahunKalender,MONTH(JulMin1+27)=7),JulMin1+27,\"\"))","v":"2018-07-21"},{"$f":"IF(DAY(JulMin1)=1,IF(AND(YEAR(JulMin1+21)=TahunKalender,MONTH(JulMin1+21)=7),JulMin1+21,\"\"),IF(AND(YEAR(JulMin1+28)=TahunKalender,MONTH(JulMin1+28)=7),JulMin1+28,\"\"))","v":"2018-07-22"}]
[]
[null,{"$f":"IF(DAY(JulMin1)=1,IF(AND(YEAR(JulMin1+22)=TahunKalender,MONTH(JulMin1+22)=7),JulMin1+22,\"\"),IF(AND(YEAR(JulMin1+29)=TahunKalender,MONTH(JulMin1+29)=7),JulMin1+29,\"\"))","v":"2018-07-23"},{"$f":"IF(DAY(JulMin1)=1,IF(AND(YEAR(JulMin1+23)=TahunKalender,MONTH(JulMin1+23)=7),JulMin1+23,\"\"),IF(AND(YEAR(JulMin1+30)=TahunKalender,MONTH(JulMin1+30)=7),JulMin1+30,\"\"))","v":"2018-07-24"},{"$f":"IF(DAY(JulMin1)=1,IF(AND(YEAR(JulMin1+24)=TahunKalender,MONTH(JulMin1+24)=7),JulMin1+24,\"\"),IF(AND(YEAR(JulMin1+31)=TahunKalender,MONTH(JulMin1+31)=7),JulMin1+31,\"\"))","v":"2018-07-25"},{"$f":"IF(DAY(JulMin1)=1,IF(AND(YEAR(JulMin1+25)=TahunKalender,MONTH(JulMin1+25)=7),JulMin1+25,\"\"),IF(AND(YEAR(JulMin1+32)=TahunKalender,MONTH(JulMin1+32)=7),JulMin1+32,\"\"))","v":"2018-07-26"},{"$f":"IF(DAY(JulMin1)=1,IF(AND(YEAR(JulMin1+26)=TahunKalender,MONTH(JulMin1+26)=7),JulMin1+26,\"\"),IF(AND(YEAR(JulMin1+33)=TahunKalender,MONTH(JulMin1+33)=7),JulMin1+33,\"\"))","v":"2018-07-27"},{"$f":"IF(DAY(JulMin1)=1,IF(AND(YEAR(JulMin1+27)=TahunKalender,MONTH(JulMin1+27)=7),JulMin1+27,\"\"),IF(AND(YEAR(JulMin1+34)=TahunKalender,MONTH(JulMin1+34)=7),JulMin1+34,\"\"))","v":"2018-07-28"},{"$f":"IF(DAY(JulMin1)=1,IF(AND(YEAR(JulMin1+28)=TahunKalender,MONTH(JulMin1+28)=7),JulMin1+28,\"\"),IF(AND(YEAR(JulMin1+35)=TahunKalender,MONTH(JulMin1+35)=7),JulMin1+35,\"\"))","v":"2018-07-29"}]
[]
[null,{"$f":"IF(DAY(JulMin1)=1,IF(AND(YEAR(JulMin1+29)=TahunKalender,MONTH(JulMin1+29)=7),JulMin1+29,\"\"),IF(AND(YEAR(JulMin1+36)=TahunKalender,MONTH(JulMin1+36)=7),JulMin1+36,\"\"))","v":"2018-07-30"},{"$f":"IF(DAY(JulMin1)=1,IF(AND(YEAR(JulMin1+30)=TahunKalender,MONTH(JulMin1+30)=7),JulMin1+30,\"\"),IF(AND(YEAR(JulMin1+37)=TahunKalender,MONTH(JulMin1+37)=7),JulMin1+37,\"\"))","v":"2018-07-31"},"CATATAN:"]

{"sheet":"Agu","index":7,"n_rows":15,"n_cols":8,"rows_kept":15,"merged":[[2,1,2,5],[14,3,14,7],[15,3,15,7]]}
[]
[]
[null,{"$f":"UPPER(TEXT(DATE(TahunKalender,8,1),\"mmmm yyyy\"))","v":"AGUSTUS 2018"}]
[null,"SENIN","SELASA","RABU","KAMIS","JUMAT","SABTU","MINGGU"]
[null,{"$f":"IF(DAY(AguMin1)=1,\"\",IF(AND(YEAR(AguMin1+1)=TahunKalender,MONTH(AguMin1+1)=8),AguMin1+1,\"\"))","v":""},{"$f":"IF(DAY(AguMin1)=1,\"\",IF(AND(YEAR(AguMin1+2)=TahunKalender,MONTH(AguMin1+2)=8),AguMin1+2,\"\"))","v":""},{"$f":"IF(DAY(AguMin1)=1,\"\",IF(AND(YEAR(AguMin1+3)=TahunKalender,MONTH(AguMin1+3)=8),AguMin1+3,\"\"))","v":"2018-08-01"},{"$f":"IF(DAY(AguMin1)=1,\"\",IF(AND(YEAR(AguMin1+4)=TahunKalender,MONTH(AguMin1+4)=8),AguMin1+4,\"\"))","v":"2018-08-02"},{"$f":"IF(DAY(AguMin1)=1,\"\",IF(AND(YEAR(AguMin1+5)=TahunKalender,MONTH(AguMin1+5)=8),AguMin1+5,\"\"))","v":"2018-08-03"},{"$f":"IF(DAY(AguMin1)=1,\"\",IF(AND(YEAR(AguMin1+6)=TahunKalender,MONTH(AguMin1+6)=8),AguMin1+6,\"\"))","v":"2018-08-04"},{"$f":"IF(DAY(AguMin1)=1,IF(AND(YEAR(AguMin1)=TahunKalender,MONTH(AguMin1)=8),AguMin1,\"\"),IF(AND(YEAR(AguMin1+7)=TahunKalender,MONTH(AguMin1+7)=8),AguMin1+7,\"\"))","v":"2018-08-05"}]
[]
[null,{"$f":"IF(DAY(AguMin1)=1,IF(AND(YEAR(AguMin1+1)=TahunKalender,MONTH(AguMin1+1)=8),AguMin1+1,\"\"),IF(AND(YEAR(AguMin1+8)=TahunKalender,MONTH(AguMin1+8)=8),AguMin1+8,\"\"))","v":"2018-08-06"},{"$f":"IF(DAY(AguMin1)=1,IF(AND(YEAR(AguMin1+2)=TahunKalender,MONTH(AguMin1+2)=8),AguMin1+2,\"\"),IF(AND(YEAR(AguMin1+9)=TahunKalender,MONTH(AguMin1+9)=8),AguMin1+9,\"\"))","v":"2018-08-07"},{"$f":"IF(DAY(AguMin1)=1,IF(AND(YEAR(AguMin1+3)=TahunKalender,MONTH(AguMin1+3)=8),AguMin1+3,\"\"),IF(AND(YEAR(AguMin1+10)=TahunKalender,MONTH(AguMin1+10)=8),AguMin1+10,\"\"))","v":"2018-08-08"},{"$f":"IF(DAY(AguMin1)=1,IF(AND(YEAR(AguMin1+4)=TahunKalender,MONTH(AguMin1+4)=8),AguMin1+4,\"\"),IF(AND(YEAR(AguMin1+11)=TahunKalender,MONTH(AguMin1+11)=8),AguMin1+11,\"\"))","v":"2018-08-09"},{"$f":"IF(DAY(AguMin1)=1,IF(AND(YEAR(AguMin1+5)=TahunKalender,MONTH(AguMin1+5)=8),AguMin1+5,\"\"),IF(AND(YEAR(AguMin1+12)=TahunKalender,MONTH(AguMin1+12)=8),AguMin1+12,\"\"))","v":"2018-08-10"},{"$f":"IF(DAY(AguMin1)=1,IF(AND(YEAR(AguMin1+6)=TahunKalender,MONTH(AguMin1+6)=8),AguMin1+6,\"\"),IF(AND(YEAR(AguMin1+13)=TahunKalender,MONTH(AguMin1+13)=8),AguMin1+13,\"\"))","v":"2018-08-11"},{"$f":"IF(DAY(AguMin1)=1,IF(AND(YEAR(AguMin1+7)=TahunKalender,MONTH(AguMin1+7)=8),AguMin1+7,\"\"),IF(AND(YEAR(AguMin1+14)=TahunKalender,MONTH(AguMin1+14)=8),AguMin1+14,\"\"))","v":"2018-08-12"}]
[]
[null,{"$f":"IF(DAY(AguMin1)=1,IF(AND(YEAR(AguMin1+8)=TahunKalender,MONTH(AguMin1+8)=8),AguMin1+8,\"\"),IF(AND(YEAR(AguMin1+15)=TahunKalender,MONTH(AguMin1+15)=8),AguMin1+15,\"\"))","v":"2018-08-13"},{"$f":"IF(DAY(AguMin1)=1,IF(AND(YEAR(AguMin1+9)=TahunKalender,MONTH(AguMin1+9)=8),AguMin1+9,\"\"),IF(AND(YEAR(AguMin1+16)=TahunKalender,MONTH(AguMin1+16)=8),AguMin1+16,\"\"))","v":"2018-08-14"},{"$f":"IF(DAY(AguMin1)=1,IF(AND(YEAR(AguMin1+10)=TahunKalender,MONTH(AguMin1+10)=8),AguMin1+10,\"\"),IF(AND(YEAR(AguMin1+17)=TahunKalender,MONTH(AguMin1+17)=8),AguMin1+17,\"\"))","v":"2018-08-15"},{"$f":"IF(DAY(AguMin1)=1,IF(AND(YEAR(AguMin1+11)=TahunKalender,MONTH(AguMin1+11)=8),AguMin1+11,\"\"),IF(AND(YEAR(AguMin1+18)=TahunKalender,MONTH(AguMin1+18)=8),AguMin1+18,\"\"))","v":"2018-08-16"},{"$f":"IF(DAY(AguMin1)=1,IF(AND(YEAR(AguMin1+12)=TahunKalender,MONTH(AguMin1+12)=8),AguMin1+12,\"\"),IF(AND(YEAR(AguMin1+19)=TahunKalender,MONTH(AguMin1+19)=8),AguMin1+19,\"\"))","v":"2018-08-17"},{"$f":"IF(DAY(AguMin1)=1,IF(AND(YEAR(AguMin1+13)=TahunKalender,MONTH(AguMin1+13)=8),AguMin1+13,\"\"),IF(AND(YEAR(AguMin1+20)=TahunKalender,MONTH(AguMin1+20)=8),AguMin1+20,\"\"))","v":"2018-08-18"},{"$f":"IF(DAY(AguMin1)=1,IF(AND(YEAR(AguMin1+14)=TahunKalender,MONTH(AguMin1+14)=8),AguMin1+14,\"\"),IF(AND(YEAR(AguMin1+21)=TahunKalender,MONTH(AguMin1+21)=8),AguMin1+21,\"\"))","v":"2018-08-19"}]
[]
[null,{"$f":"IF(DAY(AguMin1)=1,IF(AND(YEAR(AguMin1+15)=TahunKalender,MONTH(AguMin1+15)=8),AguMin1+15,\"\"),IF(AND(YEAR(AguMin1+22)=TahunKalender,MONTH(AguMin1+22)=8),AguMin1+22,\"\"))","v":"2018-08-20"},{"$f":"IF(DAY(AguMin1)=1,IF(AND(YEAR(AguMin1+16)=TahunKalender,MONTH(AguMin1+16)=8),AguMin1+16,\"\"),IF(AND(YEAR(AguMin1+23)=TahunKalender,MONTH(AguMin1+23)=8),AguMin1+23,\"\"))","v":"2018-08-21"},{"$f":"IF(DAY(AguMin1)=1,IF(AND(YEAR(AguMin1+17)=TahunKalender,MONTH(AguMin1+17)=8),AguMin1+17,\"\"),IF(AND(YEAR(AguMin1+24)=TahunKalender,MONTH(AguMin1+24)=8),AguMin1+24,\"\"))","v":"2018-08-22"},{"$f":"IF(DAY(AguMin1)=1,IF(AND(YEAR(AguMin1+18)=TahunKalender,MONTH(AguMin1+18)=8),AguMin1+18,\"\"),IF(AND(YEAR(AguMin1+25)=TahunKalender,MONTH(AguMin1+25)=8),AguMin1+25,\"\"))","v":"2018-08-23"},{"$f":"IF(DAY(AguMin1)=1,IF(AND(YEAR(AguMin1+19)=TahunKalender,MONTH(AguMin1+19)=8),AguMin1+19,\"\"),IF(AND(YEAR(AguMin1+26)=TahunKalender,MONTH(AguMin1+26)=8),AguMin1+26,\"\"))","v":"2018-08-24"},{"$f":"IF(DAY(AguMin1)=1,IF(AND(YEAR(AguMin1+20)=TahunKalender,MONTH(AguMin1+20)=8),AguMin1+20,\"\"),IF(AND(YEAR(AguMin1+27)=TahunKalender,MONTH(AguMin1+27)=8),AguMin1+27,\"\"))","v":"2018-08-25"},{"$f":"IF(DAY(AguMin1)=1,IF(AND(YEAR(AguMin1+21)=TahunKalender,MONTH(AguMin1+21)=8),AguMin1+21,\"\"),IF(AND(YEAR(AguMin1+28)=TahunKalender,MONTH(AguMin1+28)=8),AguMin1+28,\"\"))","v":"2018-08-26"}]
[]
[null,{"$f":"IF(DAY(AguMin1)=1,IF(AND(YEAR(AguMin1+22)=TahunKalender,MONTH(AguMin1+22)=8),AguMin1+22,\"\"),IF(AND(YEAR(AguMin1+29)=TahunKalender,MONTH(AguMin1+29)=8),AguMin1+29,\"\"))","v":"2018-08-27"},{"$f":"IF(DAY(AguMin1)=1,IF(AND(YEAR(AguMin1+23)=TahunKalender,MONTH(AguMin1+23)=8),AguMin1+23,\"\"),IF(AND(YEAR(AguMin1+30)=TahunKalender,MONTH(AguMin1+30)=8),AguMin1+30,\"\"))","v":"2018-08-28"},{"$f":"IF(DAY(AguMin1)=1,IF(AND(YEAR(AguMin1+24)=TahunKalender,MONTH(AguMin1+24)=8),AguMin1+24,\"\"),IF(AND(YEAR(AguMin1+31)=TahunKalender,MONTH(AguMin1+31)=8),AguMin1+31,\"\"))","v":"2018-08-29"},{"$f":"IF(DAY(AguMin1)=1,IF(AND(YEAR(AguMin1+25)=TahunKalender,MONTH(AguMin1+25)=8),AguMin1+25,\"\"),IF(AND(YEAR(AguMin1+32)=TahunKalender,MONTH(AguMin1+32)=8),AguMin1+32,\"\"))","v":"2018-08-30"},{"$f":"IF(DAY(AguMin1)=1,IF(AND(YEAR(AguMin1+26)=TahunKalender,MONTH(AguMin1+26)=8),AguMin1+26,\"\"),IF(AND(YEAR(AguMin1+33)=TahunKalender,MONTH(AguMin1+33)=8),AguMin1+33,\"\"))","v":"2018-08-31"},{"$f":"IF(DAY(AguMin1)=1,IF(AND(YEAR(AguMin1+27)=TahunKalender,MONTH(AguMin1+27)=8),AguMin1+27,\"\"),IF(AND(YEAR(AguMin1+34)=TahunKalender,MONTH(AguMin1+34)=8),AguMin1+34,\"\"))","v":""},{"$f":"IF(DAY(AguMin1)=1,IF(AND(YEAR(AguMin1+28)=TahunKalender,MONTH(AguMin1+28)=8),AguMin1+28,\"\"),IF(AND(YEAR(AguMin1+35)=TahunKalender,MONTH(AguMin1+35)=8),AguMin1+35,\"\"))","v":""}]
[]
[null,{"$f":"IF(DAY(AguMin1)=1,IF(AND(YEAR(AguMin1+29)=TahunKalender,MONTH(AguMin1+29)=8),AguMin1+29,\"\"),IF(AND(YEAR(AguMin1+36)=TahunKalender,MONTH(AguMin1+36)=8),AguMin1+36,\"\"))","v":""},{"$f":"IF(DAY(AguMin1)=1,IF(AND(YEAR(AguMin1+30)=TahunKalender,MONTH(AguMin1+30)=8),AguMin1+30,\"\"),IF(AND(YEAR(AguMin1+37)=TahunKalender,MONTH(AguMin1+37)=8),AguMin1+37,\"\"))","v":""},"CATATAN:"]

{"sheet":"Sep","index":8,"n_rows":15,"n_cols":8,"rows_kept":15,"merged":[[2,1,2,5],[14,3,14,7],[15,3,15,7]]}
[]
[]
[null,{"$f":"UPPER(TEXT(DATE(TahunKalender,9,1),\"mmmm yyyy\"))","v":"SEPTEMBER 2018"}]
[null,"SENIN","SELASA","RABU","KAMIS","JUMAT","SABTU","MINGGU"]
[null,{"$f":"IF(DAY(SepMin1)=1,\"\",IF(AND(YEAR(SepMin1+1)=TahunKalender,MONTH(SepMin1+1)=9),SepMin1+1,\"\"))","v":""},{"$f":"IF(DAY(SepMin1)=1,\"\",IF(AND(YEAR(SepMin1+2)=TahunKalender,MONTH(SepMin1+2)=9),SepMin1+2,\"\"))","v":""},{"$f":"IF(DAY(SepMin1)=1,\"\",IF(AND(YEAR(SepMin1+3)=TahunKalender,MONTH(SepMin1+3)=9),SepMin1+3,\"\"))","v":""},{"$f":"IF(DAY(SepMin1)=1,\"\",IF(AND(YEAR(SepMin1+4)=TahunKalender,MONTH(SepMin1+4)=9),SepMin1+4,\"\"))","v":""},{"$f":"IF(DAY(SepMin1)=1,\"\",IF(AND(YEAR(SepMin1+5)=TahunKalender,MONTH(SepMin1+5)=9),SepMin1+5,\"\"))","v":""},{"$f":"IF(DAY(SepMin1)=1,\"\",IF(AND(YEAR(SepMin1+6)=TahunKalender,MONTH(SepMin1+6)=9),SepMin1+6,\"\"))","v":"2018-09-01"},{"$f":"IF(DAY(SepMin1)=1,IF(AND(YEAR(SepMin1)=TahunKalender,MONTH(SepMin1)=9),SepMin1,\"\"),IF(AND(YEAR(SepMin1+7)=TahunKalender,MONTH(SepMin1+7)=9),SepMin1+7,\"\"))","v":"2018-09-02"}]
[]
[null,{"$f":"IF(DAY(SepMin1)=1,IF(AND(YEAR(SepMin1+1)=TahunKalender,MONTH(SepMin1+1)=9),SepMin1+1,\"\"),IF(AND(YEAR(SepMin1+8)=TahunKalender,MONTH(SepMin1+8)=9),SepMin1+8,\"\"))","v":"2018-09-03"},{"$f":"IF(DAY(SepMin1)=1,IF(AND(YEAR(SepMin1+2)=TahunKalender,MONTH(SepMin1+2)=9),SepMin1+2,\"\"),IF(AND(YEAR(SepMin1+9)=TahunKalender,MONTH(SepMin1+9)=9),SepMin1+9,\"\"))","v":"2018-09-04"},{"$f":"IF(DAY(SepMin1)=1,IF(AND(YEAR(SepMin1+3)=TahunKalender,MONTH(SepMin1+3)=9),SepMin1+3,\"\"),IF(AND(YEAR(SepMin1+10)=TahunKalender,MONTH(SepMin1+10)=9),SepMin1+10,\"\"))","v":"2018-09-05"},{"$f":"IF(DAY(SepMin1)=1,IF(AND(YEAR(SepMin1+4)=TahunKalender,MONTH(SepMin1+4)=9),SepMin1+4,\"\"),IF(AND(YEAR(SepMin1+11)=TahunKalender,MONTH(SepMin1+11)=9),SepMin1+11,\"\"))","v":"2018-09-06"},{"$f":"IF(DAY(SepMin1)=1,IF(AND(YEAR(SepMin1+5)=TahunKalender,MONTH(SepMin1+5)=9),SepMin1+5,\"\"),IF(AND(YEAR(SepMin1+12)=TahunKalender,MONTH(SepMin1+12)=9),SepMin1+12,\"\"))","v":"2018-09-07"},{"$f":"IF(DAY(SepMin1)=1,IF(AND(YEAR(SepMin1+6)=TahunKalender,MONTH(SepMin1+6)=9),SepMin1+6,\"\"),IF(AND(YEAR(SepMin1+13)=TahunKalender,MONTH(SepMin1+13)=9),SepMin1+13,\"\"))","v":"2018-09-08"},{"$f":"IF(DAY(SepMin1)=1,IF(AND(YEAR(SepMin1+7)=TahunKalender,MONTH(SepMin1+7)=9),SepMin1+7,\"\"),IF(AND(YEAR(SepMin1+14)=TahunKalender,MONTH(SepMin1+14)=9),SepMin1+14,\"\"))","v":"2018-09-09"}]
[]
[null,{"$f":"IF(DAY(SepMin1)=1,IF(AND(YEAR(SepMin1+8)=TahunKalender,MONTH(SepMin1+8)=9),SepMin1+8,\"\"),IF(AND(YEAR(SepMin1+15)=TahunKalender,MONTH(SepMin1+15)=9),SepMin1+15,\"\"))","v":"2018-09-10"},{"$f":"IF(DAY(SepMin1)=1,IF(AND(YEAR(SepMin1+9)=TahunKalender,MONTH(SepMin1+9)=9),SepMin1+9,\"\"),IF(AND(YEAR(SepMin1+16)=TahunKalender,MONTH(SepMin1+16)=9),SepMin1+16,\"\"))","v":"2018-09-11"},{"$f":"IF(DAY(SepMin1)=1,IF(AND(YEAR(SepMin1+10)=TahunKalender,MONTH(SepMin1+10)=9),SepMin1+10,\"\"),IF(AND(YEAR(SepMin1+17)=TahunKalender,MONTH(SepMin1+17)=9),SepMin1+17,\"\"))","v":"2018-09-12"},{"$f":"IF(DAY(SepMin1)=1,IF(AND(YEAR(SepMin1+11)=TahunKalender,MONTH(SepMin1+11)=9),SepMin1+11,\"\"),IF(AND(YEAR(SepMin1+18)=TahunKalender,MONTH(SepMin1+18)=9),SepMin1+18,\"\"))","v":"2018-09-13"},{"$f":"IF(DAY(SepMin1)=1,IF(AND(YEAR(SepMin1+12)=TahunKalender,MONTH(SepMin1+12)=9),SepMin1+12,\"\"),IF(AND(YEAR(SepMin1+19)=TahunKalender,MONTH(SepMin1+19)=9),SepMin1+19,\"\"))","v":"2018-09-14"},{"$f":"IF(DAY(SepMin1)=1,IF(AND(YEAR(SepMin1+13)=TahunKalender,MONTH(SepMin1+13)=9),SepMin1+13,\"\"),IF(AND(YEAR(SepMin1+20)=TahunKalender,MONTH(SepMin1+20)=9),SepMin1+20,\"\"))","v":"2018-09-15"},{"$f":"IF(DAY(SepMin1)=1,IF(AND(YEAR(SepMin1+14)=TahunKalender,MONTH(SepMin1+14)=9),SepMin1+14,\"\"),IF(AND(YEAR(SepMin1+21)=TahunKalender,MONTH(SepMin1+21)=9),SepMin1+21,\"\"))","v":"2018-09-16"}]
[]
[null,{"$f":"IF(DAY(SepMin1)=1,IF(AND(YEAR(SepMin1+15)=TahunKalender,MONTH(SepMin1+15)=9),SepMin1+15,\"\"),IF(AND(YEAR(SepMin1+22)=TahunKalender,MONTH(SepMin1+22)=9),SepMin1+22,\"\"))","v":"2018-09-17"},{"$f":"IF(DAY(SepMin1)=1,IF(AND(YEAR(SepMin1+16)=TahunKalender,MONTH(SepMin1+16)=9),SepMin1+16,\"\"),IF(AND(YEAR(SepMin1+23)=TahunKalender,MONTH(SepMin1+23)=9),SepMin1+23,\"\"))","v":"2018-09-18"},{"$f":"IF(DAY(SepMin1)=1,IF(AND(YEAR(SepMin1+17)=TahunKalender,MONTH(SepMin1+17)=9),SepMin1+17,\"\"),IF(AND(YEAR(SepMin1+24)=TahunKalender,MONTH(SepMin1+24)=9),SepMin1+24,\"\"))","v":"2018-09-19"},{"$f":"IF(DAY(SepMin1)=1,IF(AND(YEAR(SepMin1+18)=TahunKalender,MONTH(SepMin1+18)=9),SepMin1+18,\"\"),IF(AND(YEAR(SepMin1+25)=TahunKalender,MONTH(SepMin1+25)=9),SepMin1+25,\"\"))","v":"2018-09-20"},{"$f":"IF(DAY(SepMin1)=1,IF(AND(YEAR(SepMin1+19)=TahunKalender,MONTH(SepMin1+19)=9),SepMin1+19,\"\"),IF(AND(YEAR(SepMin1+26)=TahunKalender,MONTH(SepMin1+26)=9),SepMin1+26,\"\"))","v":"2018-09-21"},{"$f":"IF(DAY(SepMin1)=1,IF(AND(YEAR(SepMin1+20)=TahunKalender,MONTH(SepMin1+20)=9),SepMin1+20,\"\"),IF(AND(YEAR(SepMin1+27)=TahunKalender,MONTH(SepMin1+27)=9),SepMin1+27,\"\"))","v":"2018-09-22"},{"$f":"IF(DAY(SepMin1)=1,IF(AND(YEAR(SepMin1+21)=TahunKalender,MONTH(SepMin1+21)=9),SepMin1+21,\"\"),IF(AND(YEAR(SepMin1+28)=TahunKalender,MONTH(SepMin1+28)=9),SepMin1+28,\"\"))","v":"2018-09-23"}]
[]
[null,{"$f":"IF(DAY(SepMin1)=1,IF(AND(YEAR(SepMin1+22)=TahunKalender,MONTH(SepMin1+22)=9),SepMin1+22,\"\"),IF(AND(YEAR(SepMin1+29)=TahunKalender,MONTH(SepMin1+29)=9),SepMin1+29,\"\"))","v":"2018-09-24"},{"$f":"IF(DAY(SepMin1)=1,IF(AND(YEAR(SepMin1+23)=TahunKalender,MONTH(SepMin1+23)=9),SepMin1+23,\"\"),IF(AND(YEAR(SepMin1+30)=TahunKalender,MONTH(SepMin1+30)=9),SepMin1+30,\"\"))","v":"2018-09-25"},{"$f":"IF(DAY(SepMin1)=1,IF(AND(YEAR(SepMin1+24)=TahunKalender,MONTH(SepMin1+24)=9),SepMin1+24,\"\"),IF(AND(YEAR(SepMin1+31)=TahunKalender,MONTH(SepMin1+31)=9),SepMin1+31,\"\"))","v":"2018-09-26"},{"$f":"IF(DAY(SepMin1)=1,IF(AND(YEAR(SepMin1+25)=TahunKalender,MONTH(SepMin1+25)=9),SepMin1+25,\"\"),IF(AND(YEAR(SepMin1+32)=TahunKalender,MONTH(SepMin1+32)=9),SepMin1+32,\"\"))","v":"2018-09-27"},{"$f":"IF(DAY(SepMin1)=1,IF(AND(YEAR(SepMin1+26)=TahunKalender,MONTH(SepMin1+26)=9),SepMin1+26,\"\"),IF(AND(YEAR(SepMin1+33)=TahunKalender,MONTH(SepMin1+33)=9),SepMin1+33,\"\"))","v":"2018-09-28"},{"$f":"IF(DAY(SepMin1)=1,IF(AND(YEAR(SepMin1+27)=TahunKalender,MONTH(SepMin1+27)=9),SepMin1+27,\"\"),IF(AND(YEAR(SepMin1+34)=TahunKalender,MONTH(SepMin1+34)=9),SepMin1+34,\"\"))","v":"2018-09-29"},{"$f":"IF(DAY(SepMin1)=1,IF(AND(YEAR(SepMin1+28)=TahunKalender,MONTH(SepMin1+28)=9),SepMin1+28,\"\"),IF(AND(YEAR(SepMin1+35)=TahunKalender,MONTH(SepMin1+35)=9),SepMin1+35,\"\"))","v":"2018-09-30"}]
[]
[null,{"$f":"IF(DAY(SepMin1)=1,IF(AND(YEAR(SepMin1+29)=TahunKalender,MONTH(SepMin1+29)=9),SepMin1+29,\"\"),IF(AND(YEAR(SepMin1+36)=TahunKalender,MONTH(SepMin1+36)=9),SepMin1+36,\"\"))","v":""},{"$f":"IF(DAY(SepMin1)=1,IF(AND(YEAR(SepMin1+30)=TahunKalender,MONTH(SepMin1+30)=9),SepMin1+30,\"\"),IF(AND(YEAR(SepMin1+37)=TahunKalender,MONTH(SepMin1+37)=9),SepMin1+37,\"\"))","v":""},"CATATAN:"]

{"sheet":"Okt","index":9,"n_rows":15,"n_cols":8,"rows_kept":15,"merged":[[2,1,2,5],[14,3,14,7],[15,3,15,7]]}
[]
[]
[null,{"$f":"UPPER(TEXT(DATE(TahunKalender,10,1),\"mmmm yyyy\"))","v":"OKTOBER 2018"}]
[null,"SENIN","SELASA","RABU","KAMIS","JUMAT","SABTU","MINGGU"]
[null,{"$f":"IF(DAY(OktMin1)=1,\"\",IF(AND(YEAR(OktMin1+1)=TahunKalender,MONTH(OktMin1+1)=10),OktMin1+1,\"\"))","v":"2018-10-01"},{"$f":"IF(DAY(OktMin1)=1,\"\",IF(AND(YEAR(OktMin1+2)=TahunKalender,MONTH(OktMin1+2)=10),OktMin1+2,\"\"))","v":"2018-10-02"},{"$f":"IF(DAY(OktMin1)=1,\"\",IF(AND(YEAR(OktMin1+3)=TahunKalender,MONTH(OktMin1+3)=10),OktMin1+3,\"\"))","v":"2018-10-03"},{"$f":"IF(DAY(OktMin1)=1,\"\",IF(AND(YEAR(OktMin1+4)=TahunKalender,MONTH(OktMin1+4)=10),OktMin1+4,\"\"))","v":"2018-10-04"},{"$f":"IF(DAY(OktMin1)=1,\"\",IF(AND(YEAR(OktMin1+5)=TahunKalender,MONTH(OktMin1+5)=10),OktMin1+5,\"\"))","v":"2018-10-05"},{"$f":"IF(DAY(OktMin1)=1,\"\",IF(AND(YEAR(OktMin1+6)=TahunKalender,MONTH(OktMin1+6)=10),OktMin1+6,\"\"))","v":"2018-10-06"},{"$f":"IF(DAY(OktMin1)=1,IF(AND(YEAR(OktMin1)=TahunKalender,MONTH(OktMin1)=10),OktMin1,\"\"),IF(AND(YEAR(OktMin1+7)=TahunKalender,MONTH(OktMin1+7)=10),OktMin1+7,\"\"))","v":"2018-10-07"}]
[]
[null,{"$f":"IF(DAY(OktMin1)=1,IF(AND(YEAR(OktMin1+1)=TahunKalender,MONTH(OktMin1+1)=10),OktMin1+1,\"\"),IF(AND(YEAR(OktMin1+8)=TahunKalender,MONTH(OktMin1+8)=10),OktMin1+8,\"\"))","v":"2018-10-08"},{"$f":"IF(DAY(OktMin1)=1,IF(AND(YEAR(OktMin1+2)=TahunKalender,MONTH(OktMin1+2)=10),OktMin1+2,\"\"),IF(AND(YEAR(OktMin1+9)=TahunKalender,MONTH(OktMin1+9)=10),OktMin1+9,\"\"))","v":"2018-10-09"},{"$f":"IF(DAY(OktMin1)=1,IF(AND(YEAR(OktMin1+3)=TahunKalender,MONTH(OktMin1+3)=10),OktMin1+3,\"\"),IF(AND(YEAR(OktMin1+10)=TahunKalender,MONTH(OktMin1+10)=10),OktMin1+10,\"\"))","v":"2018-10-10"},{"$f":"IF(DAY(OktMin1)=1,IF(AND(YEAR(OktMin1+4)=TahunKalender,MONTH(OktMin1+4)=10),OktMin1+4,\"\"),IF(AND(YEAR(OktMin1+11)=TahunKalender,MONTH(OktMin1+11)=10),OktMin1+11,\"\"))","v":"2018-10-11"},{"$f":"IF(DAY(OktMin1)=1,IF(AND(YEAR(OktMin1+5)=TahunKalender,MONTH(OktMin1+5)=10),OktMin1+5,\"\"),IF(AND(YEAR(OktMin1+12)=TahunKalender,MONTH(OktMin1+12)=10),OktMin1+12,\"\"))","v":"2018-10-12"},{"$f":"IF(DAY(OktMin1)=1,IF(AND(YEAR(OktMin1+6)=TahunKalender,MONTH(OktMin1+6)=10),OktMin1+6,\"\"),IF(AND(YEAR(OktMin1+13)=TahunKalender,MONTH(OktMin1+13)=10),OktMin1+13,\"\"))","v":"2018-10-13"},{"$f":"IF(DAY(OktMin1)=1,IF(AND(YEAR(OktMin1+7)=TahunKalender,MONTH(OktMin1+7)=10),OktMin1+7,\"\"),IF(AND(YEAR(OktMin1+14)=TahunKalender,MONTH(OktMin1+14)=10),OktMin1+14,\"\"))","v":"2018-10-14"}]
[]
[null,{"$f":"IF(DAY(OktMin1)=1,IF(AND(YEAR(OktMin1+8)=TahunKalender,MONTH(OktMin1+8)=10),OktMin1+8,\"\"),IF(AND(YEAR(OktMin1+15)=TahunKalender,MONTH(OktMin1+15)=10),OktMin1+15,\"\"))","v":"2018-10-15"},{"$f":"IF(DAY(OktMin1)=1,IF(AND(YEAR(OktMin1+9)=TahunKalender,MONTH(OktMin1+9)=10),OktMin1+9,\"\"),IF(AND(YEAR(OktMin1+16)=TahunKalender,MONTH(OktMin1+16)=10),OktMin1+16,\"\"))","v":"2018-10-16"},{"$f":"IF(DAY(OktMin1)=1,IF(AND(YEAR(OktMin1+10)=TahunKalender,MONTH(OktMin1+10)=10),OktMin1+10,\"\"),IF(AND(YEAR(OktMin1+17)=TahunKalender,MONTH(OktMin1+17)=10),OktMin1+17,\"\"))","v":"2018-10-17"},{"$f":"IF(DAY(OktMin1)=1,IF(AND(YEAR(OktMin1+11)=TahunKalender,MONTH(OktMin1+11)=10),OktMin1+11,\"\"),IF(AND(YEAR(OktMin1+18)=TahunKalender,MONTH(OktMin1+18)=10),OktMin1+18,\"\"))","v":"2018-10-18"},{"$f":"IF(DAY(OktMin1)=1,IF(AND(YEAR(OktMin1+12)=TahunKalender,MONTH(OktMin1+12)=10),OktMin1+12,\"\"),IF(AND(YEAR(OktMin1+19)=TahunKalender,MONTH(OktMin1+19)=10),OktMin1+19,\"\"))","v":"2018-10-19"},{"$f":"IF(DAY(OktMin1)=1,IF(AND(YEAR(OktMin1+13)=TahunKalender,MONTH(OktMin1+13)=10),OktMin1+13,\"\"),IF(AND(YEAR(OktMin1+20)=TahunKalender,MONTH(OktMin1+20)=10),OktMin1+20,\"\"))","v":"2018-10-20"},{"$f":"IF(DAY(OktMin1)=1,IF(AND(YEAR(OktMin1+14)=TahunKalender,MONTH(OktMin1+14)=10),OktMin1+14,\"\"),IF(AND(YEAR(OktMin1+21)=TahunKalender,MONTH(OktMin1+21)=10),OktMin1+21,\"\"))","v":"2018-10-21"}]
[]
[null,{"$f":"IF(DAY(OktMin1)=1,IF(AND(YEAR(OktMin1+15)=TahunKalender,MONTH(OktMin1+15)=10),OktMin1+15,\"\"),IF(AND(YEAR(OktMin1+22)=TahunKalender,MONTH(OktMin1+22)=10),OktMin1+22,\"\"))","v":"2018-10-22"},{"$f":"IF(DAY(OktMin1)=1,IF(AND(YEAR(OktMin1+16)=TahunKalender,MONTH(OktMin1+16)=10),OktMin1+16,\"\"),IF(AND(YEAR(OktMin1+23)=TahunKalender,MONTH(OktMin1+23)=10),OktMin1+23,\"\"))","v":"2018-10-23"},{"$f":"IF(DAY(OktMin1)=1,IF(AND(YEAR(OktMin1+17)=TahunKalender,MONTH(OktMin1+17)=10),OktMin1+17,\"\"),IF(AND(YEAR(OktMin1+24)=TahunKalender,MONTH(OktMin1+24)=10),OktMin1+24,\"\"))","v":"2018-10-24"},{"$f":"IF(DAY(OktMin1)=1,IF(AND(YEAR(OktMin1+18)=TahunKalender,MONTH(OktMin1+18)=10),OktMin1+18,\"\"),IF(AND(YEAR(OktMin1+25)=TahunKalender,MONTH(OktMin1+25)=10),OktMin1+25,\"\"))","v":"2018-10-25"},{"$f":"IF(DAY(OktMin1)=1,IF(AND(YEAR(OktMin1+19)=TahunKalender,MONTH(OktMin1+19)=10),OktMin1+19,\"\"),IF(AND(YEAR(OktMin1+26)=TahunKalender,MONTH(OktMin1+26)=10),OktMin1+26,\"\"))","v":"2018-10-26"},{"$f":"IF(DAY(OktMin1)=1,IF(AND(YEAR(OktMin1+20)=TahunKalender,MONTH(OktMin1+20)=10),OktMin1+20,\"\"),IF(AND(YEAR(OktMin1+27)=TahunKalender,MONTH(OktMin1+27)=10),OktMin1+27,\"\"))","v":"2018-10-27"},{"$f":"IF(DAY(OktMin1)=1,IF(AND(YEAR(OktMin1+21)=TahunKalender,MONTH(OktMin1+21)=10),OktMin1+21,\"\"),IF(AND(YEAR(OktMin1+28)=TahunKalender,MONTH(OktMin1+28)=10),OktMin1+28,\"\"))","v":"2018-10-28"}]
[]
[null,{"$f":"IF(DAY(OktMin1)=1,IF(AND(YEAR(OktMin1+22)=TahunKalender,MONTH(OktMin1+22)=10),OktMin1+22,\"\"),IF(AND(YEAR(OktMin1+29)=TahunKalender,MONTH(OktMin1+29)=10),OktMin1+29,\"\"))","v":"2018-10-29"},{"$f":"IF(DAY(OktMin1)=1,IF(AND(YEAR(OktMin1+23)=TahunKalender,MONTH(OktMin1+23)=10),OktMin1+23,\"\"),IF(AND(YEAR(OktMin1+30)=TahunKalender,MONTH(OktMin1+30)=10),OktMin1+30,\"\"))","v":"2018-10-30"},{"$f":"IF(DAY(OktMin1)=1,IF(AND(YEAR(OktMin1+24)=TahunKalender,MONTH(OktMin1+24)=10),OktMin1+24,\"\"),IF(AND(YEAR(OktMin1+31)=TahunKalender,MONTH(OktMin1+31)=10),OktMin1+31,\"\"))","v":"2018-10-31"},{"$f":"IF(DAY(OktMin1)=1,IF(AND(YEAR(OktMin1+25)=TahunKalender,MONTH(OktMin1+25)=10),OktMin1+25,\"\"),IF(AND(YEAR(OktMin1+32)=TahunKalender,MONTH(OktMin1+32)=10),OktMin1+32,\"\"))","v":""},{"$f":"IF(DAY(OktMin1)=1,IF(AND(YEAR(OktMin1+26)=TahunKalender,MONTH(OktMin1+26)=10),OktMin1+26,\"\"),IF(AND(YEAR(OktMin1+33)=TahunKalender,MONTH(OktMin1+33)=10),OktMin1+33,\"\"))","v":""},{"$f":"IF(DAY(OktMin1)=1,IF(AND(YEAR(OktMin1+27)=TahunKalender,MONTH(OktMin1+27)=10),OktMin1+27,\"\"),IF(AND(YEAR(OktMin1+34)=TahunKalender,MONTH(OktMin1+34)=10),OktMin1+34,\"\"))","v":""},{"$f":"IF(DAY(OktMin1)=1,IF(AND(YEAR(OktMin1+28)=TahunKalender,MONTH(OktMin1+28)=10),OktMin1+28,\"\"),IF(AND(YEAR(OktMin1+35)=TahunKalender,MONTH(OktMin1+35)=10),OktMin1+35,\"\"))","v":""}]
[]
[null,{"$f":"IF(DAY(OktMin1)=1,IF(AND(YEAR(OktMin1+29)=TahunKalender,MONTH(OktMin1+29)=10),OktMin1+29,\"\"),IF(AND(YEAR(OktMin1+36)=TahunKalender,MONTH(OktMin1+36)=10),OktMin1+36,\"\"))","v":""},{"$f":"IF(DAY(OktMin1)=1,IF(AND(YEAR(OktMin1+30)=TahunKalender,MONTH(OktMin1+30)=10),OktMin1+30,\"\"),IF(AND(YEAR(OktMin1+37)=TahunKalender,MONTH(OktMin1+37)=10),OktMin1+37,\"\"))","v":""},"CATATAN:"]

{"sheet":"Nov","index":10,"n_rows":15,"n_cols":8,"rows_kept":15,"merged":[[2,1,2,5],[14,3,14,7],[15,3,15,7]]}
[]
[]
[null,{"$f":"UPPER(TEXT(DATE(TahunKalender,11,1),\"mmmm yyyy\"))","v":"NOVEMBER 2018"}]
[null,"SENIN","SELASA","RABU","KAMIS","JUMAT","SABTU","MINGGU"]
[null,{"$f":"IF(DAY(NovMin1)=1,\"\",IF(AND(YEAR(NovMin1+1)=TahunKalender,MONTH(NovMin1+1)=11),NovMin1+1,\"\"))","v":""},{"$f":"IF(DAY(NovMin1)=1,\"\",IF(AND(YEAR(NovMin1+2)=TahunKalender,MONTH(NovMin1+2)=11),NovMin1+2,\"\"))","v":""},{"$f":"IF(DAY(NovMin1)=1,\"\",IF(AND(YEAR(NovMin1+3)=TahunKalender,MONTH(NovMin1+3)=11),NovMin1+3,\"\"))","v":""},{"$f":"IF(DAY(NovMin1)=1,\"\",IF(AND(YEAR(NovMin1+4)=TahunKalender,MONTH(NovMin1+4)=11),NovMin1+4,\"\"))","v":"2018-11-01"},{"$f":"IF(DAY(NovMin1)=1,\"\",IF(AND(YEAR(NovMin1+5)=TahunKalender,MONTH(NovMin1+5)=11),NovMin1+5,\"\"))","v":"2018-11-02"},{"$f":"IF(DAY(NovMin1)=1,\"\",IF(AND(YEAR(NovMin1+6)=TahunKalender,MONTH(NovMin1+6)=11),NovMin1+6,\"\"))","v":"2018-11-03"},{"$f":"IF(DAY(NovMin1)=1,IF(AND(YEAR(NovMin1)=TahunKalender,MONTH(NovMin1)=11),NovMin1,\"\"),IF(AND(YEAR(NovMin1+7)=TahunKalender,MONTH(NovMin1+7)=11),NovMin1+7,\"\"))","v":"2018-11-04"}]
[]
[null,{"$f":"IF(DAY(NovMin1)=1,IF(AND(YEAR(NovMin1+1)=TahunKalender,MONTH(NovMin1+1)=11),NovMin1+1,\"\"),IF(AND(YEAR(NovMin1+8)=TahunKalender,MONTH(NovMin1+8)=11),NovMin1+8,\"\"))","v":"2018-11-05"},{"$f":"IF(DAY(NovMin1)=1,IF(AND(YEAR(NovMin1+2)=TahunKalender,MONTH(NovMin1+2)=11),NovMin1+2,\"\"),IF(AND(YEAR(NovMin1+9)=TahunKalender,MONTH(NovMin1+9)=11),NovMin1+9,\"\"))","v":"2018-11-06"},{"$f":"IF(DAY(NovMin1)=1,IF(AND(YEAR(NovMin1+3)=TahunKalender,MONTH(NovMin1+3)=11),NovMin1+3,\"\"),IF(AND(YEAR(NovMin1+10)=TahunKalender,MONTH(NovMin1+10)=11),NovMin1+10,\"\"))","v":"2018-11-07"},{"$f":"IF(DAY(NovMin1)=1,IF(AND(YEAR(NovMin1+4)=TahunKalender,MONTH(NovMin1+4)=11),NovMin1+4,\"\"),IF(AND(YEAR(NovMin1+11)=TahunKalender,MONTH(NovMin1+11)=11),NovMin1+11,\"\"))","v":"2018-11-08"},{"$f":"IF(DAY(NovMin1)=1,IF(AND(YEAR(NovMin1+5)=TahunKalender,MONTH(NovMin1+5)=11),NovMin1+5,\"\"),IF(AND(YEAR(NovMin1+12)=TahunKalender,MONTH(NovMin1+12)=11),NovMin1+12,\"\"))","v":"2018-11-09"},{"$f":"IF(DAY(NovMin1)=1,IF(AND(YEAR(NovMin1+6)=TahunKalender,MONTH(NovMin1+6)=11),NovMin1+6,\"\"),IF(AND(YEAR(NovMin1+13)=TahunKalender,MONTH(NovMin1+13)=11),NovMin1+13,\"\"))","v":"2018-11-10"},{"$f":"IF(DAY(NovMin1)=1,IF(AND(YEAR(NovMin1+7)=TahunKalender,MONTH(NovMin1+7)=11),NovMin1+7,\"\"),IF(AND(YEAR(NovMin1+14)=TahunKalender,MONTH(NovMin1+14)=11),NovMin1+14,\"\"))","v":"2018-11-11"}]
[]
[null,{"$f":"IF(DAY(NovMin1)=1,IF(AND(YEAR(NovMin1+8)=TahunKalender,MONTH(NovMin1+8)=11),NovMin1+8,\"\"),IF(AND(YEAR(NovMin1+15)=TahunKalender,MONTH(NovMin1+15)=11),NovMin1+15,\"\"))","v":"2018-11-12"},{"$f":"IF(DAY(NovMin1)=1,IF(AND(YEAR(NovMin1+9)=TahunKalender,MONTH(NovMin1+9)=11),NovMin1+9,\"\"),IF(AND(YEAR(NovMin1+16)=TahunKalender,MONTH(NovMin1+16)=11),NovMin1+16,\"\"))","v":"2018-11-13"},{"$f":"IF(DAY(NovMin1)=1,IF(AND(YEAR(NovMin1+10)=TahunKalender,MONTH(NovMin1+10)=11),NovMin1+10,\"\"),IF(AND(YEAR(NovMin1+17)=TahunKalender,MONTH(NovMin1+17)=11),NovMin1+17,\"\"))","v":"2018-11-14"},{"$f":"IF(DAY(NovMin1)=1,IF(AND(YEAR(NovMin1+11)=TahunKalender,MONTH(NovMin1+11)=11),NovMin1+11,\"\"),IF(AND(YEAR(NovMin1+18)=TahunKalender,MONTH(NovMin1+18)=11),NovMin1+18,\"\"))","v":"2018-11-15"},{"$f":"IF(DAY(NovMin1)=1,IF(AND(YEAR(NovMin1+12)=TahunKalender,MONTH(NovMin1+12)=11),NovMin1+12,\"\"),IF(AND(YEAR(NovMin1+19)=TahunKalender,MONTH(NovMin1+19)=11),NovMin1+19,\"\"))","v":"2018-11-16"},{"$f":"IF(DAY(NovMin1)=1,IF(AND(YEAR(NovMin1+13)=TahunKalender,MONTH(NovMin1+13)=11),NovMin1+13,\"\"),IF(AND(YEAR(NovMin1+20)=TahunKalender,MONTH(NovMin1+20)=11),NovMin1+20,\"\"))","v":"2018-11-17"},{"$f":"IF(DAY(NovMin1)=1,IF(AND(YEAR(NovMin1+14)=TahunKalender,MONTH(NovMin1+14)=11),NovMin1+14,\"\"),IF(AND(YEAR(NovMin1+21)=TahunKalender,MONTH(NovMin1+21)=11),NovMin1+21,\"\"))","v":"2018-11-18"}]
[]
[null,{"$f":"IF(DAY(NovMin1)=1,IF(AND(YEAR(NovMin1+15)=TahunKalender,MONTH(NovMin1+15)=11),NovMin1+15,\"\"),IF(AND(YEAR(NovMin1+22)=TahunKalender,MONTH(NovMin1+22)=11),NovMin1+22,\"\"))","v":"2018-11-19"},{"$f":"IF(DAY(NovMin1)=1,IF(AND(YEAR(NovMin1+16)=TahunKalender,MONTH(NovMin1+16)=11),NovMin1+16,\"\"),IF(AND(YEAR(NovMin1+23)=TahunKalender,MONTH(NovMin1+23)=11),NovMin1+23,\"\"))","v":"2018-11-20"},{"$f":"IF(DAY(NovMin1)=1,IF(AND(YEAR(NovMin1+17)=TahunKalender,MONTH(NovMin1+17)=11),NovMin1+17,\"\"),IF(AND(YEAR(NovMin1+24)=TahunKalender,MONTH(NovMin1+24)=11),NovMin1+24,\"\"))","v":"2018-11-21"},{"$f":"IF(DAY(NovMin1)=1,IF(AND(YEAR(NovMin1+18)=TahunKalender,MONTH(NovMin1+18)=11),NovMin1+18,\"\"),IF(AND(YEAR(NovMin1+25)=TahunKalender,MONTH(NovMin1+25)=11),NovMin1+25,\"\"))","v":"2018-11-22"},{"$f":"IF(DAY(NovMin1)=1,IF(AND(YEAR(NovMin1+19)=TahunKalender,MONTH(NovMin1+19)=11),NovMin1+19,\"\"),IF(AND(YEAR(NovMin1+26)=TahunKalender,MONTH(NovMin1+26)=11),NovMin1+26,\"\"))","v":"2018-11-23"},{"$f":"IF(DAY(NovMin1)=1,IF(AND(YEAR(NovMin1+20)=TahunKalender,MONTH(NovMin1+20)=11),NovMin1+20,\"\"),IF(AND(YEAR(NovMin1+27)=TahunKalender,MONTH(NovMin1+27)=11),NovMin1+27,\"\"))","v":"2018-11-24"},{"$f":"IF(DAY(NovMin1)=1,IF(AND(YEAR(NovMin1+21)=TahunKalender,MONTH(NovMin1+21)=11),NovMin1+21,\"\"),IF(AND(YEAR(NovMin1+28)=TahunKalender,MONTH(NovMin1+28)=11),NovMin1+28,\"\"))","v":"2018-11-25"}]
[]
[null,{"$f":"IF(DAY(NovMin1)=1,IF(AND(YEAR(NovMin1+22)=TahunKalender,MONTH(NovMin1+22)=11),NovMin1+22,\"\"),IF(AND(YEAR(NovMin1+29)=TahunKalender,MONTH(NovMin1+29)=11),NovMin1+29,\"\"))","v":"2018-11-26"},{"$f":"IF(DAY(NovMin1)=1,IF(AND(YEAR(NovMin1+23)=TahunKalender,MONTH(NovMin1+23)=11),NovMin1+23,\"\"),IF(AND(YEAR(NovMin1+30)=TahunKalender,MONTH(NovMin1+30)=11),NovMin1+30,\"\"))","v":"2018-11-27"},{"$f":"IF(DAY(NovMin1)=1,IF(AND(YEAR(NovMin1+24)=TahunKalender,MONTH(NovMin1+24)=11),NovMin1+24,\"\"),IF(AND(YEAR(NovMin1+31)=TahunKalender,MONTH(NovMin1+31)=11),NovMin1+31,\"\"))","v":"2018-11-28"},{"$f":"IF(DAY(NovMin1)=1,IF(AND(YEAR(NovMin1+25)=TahunKalender,MONTH(NovMin1+25)=11),NovMin1+25,\"\"),IF(AND(YEAR(NovMin1+32)=TahunKalender,MONTH(NovMin1+32)=11),NovMin1+32,\"\"))","v":"2018-11-29"},{"$f":"IF(DAY(NovMin1)=1,IF(AND(YEAR(NovMin1+26)=TahunKalender,MONTH(NovMin1+26)=11),NovMin1+26,\"\"),IF(AND(YEAR(NovMin1+33)=TahunKalender,MONTH(NovMin1+33)=11),NovMin1+33,\"\"))","v":"2018-11-30"},{"$f":"IF(DAY(NovMin1)=1,IF(AND(YEAR(NovMin1+27)=TahunKalender,MONTH(NovMin1+27)=11),NovMin1+27,\"\"),IF(AND(YEAR(NovMin1+34)=TahunKalender,MONTH(NovMin1+34)=11),NovMin1+34,\"\"))","v":""},{"$f":"IF(DAY(NovMin1)=1,IF(AND(YEAR(NovMin1+28)=TahunKalender,MONTH(NovMin1+28)=11),NovMin1+28,\"\"),IF(AND(YEAR(NovMin1+35)=TahunKalender,MONTH(NovMin1+35)=11),NovMin1+35,\"\"))","v":""}]
[]
[null,{"$f":"IF(DAY(NovMin1)=1,IF(AND(YEAR(NovMin1+29)=TahunKalender,MONTH(NovMin1+29)=11),NovMin1+29,\"\"),IF(AND(YEAR(NovMin1+36)=TahunKalender,MONTH(NovMin1+36)=11),NovMin1+36,\"\"))","v":""},{"$f":"IF(DAY(NovMin1)=1,IF(AND(YEAR(NovMin1+30)=TahunKalender,MONTH(NovMin1+30)=11),NovMin1+30,\"\"),IF(AND(YEAR(NovMin1+37)=TahunKalender,MONTH(NovMin1+37)=11),NovMin1+37,\"\"))","v":""},"CATATAN:"]

{"sheet":"Des","index":11,"n_rows":15,"n_cols":8,"rows_kept":15,"merged":[[2,1,2,5],[14,3,14,7],[15,3,15,7]]}
[]
[]
[null,{"$f":"UPPER(TEXT(DATE(TahunKalender,12,1),\"mmmm yyyy\"))","v":"DESEMBER 2018"}]
[null,"SENIN","SELASA","RABU","KAMIS","JUMAT","SABTU","MINGGU"]
[null,{"$f":"IF(DAY(DesMin1)=1,\"\",IF(AND(YEAR(DesMin1+1)=TahunKalender,MONTH(DesMin1+1)=12),DesMin1+1,\"\"))","v":""},{"$f":"IF(DAY(DesMin1)=1,\"\",IF(AND(YEAR(DesMin1+2)=TahunKalender,MONTH(DesMin1+2)=12),DesMin1+2,\"\"))","v":""},{"$f":"IF(DAY(DesMin1)=1,\"\",IF(AND(YEAR(DesMin1+3)=TahunKalender,MONTH(DesMin1+3)=12),DesMin1+3,\"\"))","v":""},{"$f":"IF(DAY(DesMin1)=1,\"\",IF(AND(YEAR(DesMin1+4)=TahunKalender,MONTH(DesMin1+4)=12),DesMin1+4,\"\"))","v":""},{"$f":"IF(DAY(DesMin1)=1,\"\",IF(AND(YEAR(DesMin1+5)=TahunKalender,MONTH(DesMin1+5)=12),DesMin1+5,\"\"))","v":""},{"$f":"IF(DAY(DesMin1)=1,\"\",IF(AND(YEAR(DesMin1+6)=TahunKalender,MONTH(DesMin1+6)=12),DesMin1+6,\"\"))","v":"2018-12-01"},{"$f":"IF(DAY(DesMin1)=1,IF(AND(YEAR(DesMin1)=TahunKalender,MONTH(DesMin1)=12),DesMin1,\"\"),IF(AND(YEAR(DesMin1+7)=TahunKalender,MONTH(DesMin1+7)=12),DesMin1+7,\"\"))","v":"2018-12-02"}]
[]
[null,{"$f":"IF(DAY(DesMin1)=1,IF(AND(YEAR(DesMin1+1)=TahunKalender,MONTH(DesMin1+1)=12),DesMin1+1,\"\"),IF(AND(YEAR(DesMin1+8)=TahunKalender,MONTH(DesMin1+8)=12),DesMin1+8,\"\"))","v":"2018-12-03"},{"$f":"IF(DAY(DesMin1)=1,IF(AND(YEAR(DesMin1+2)=TahunKalender,MONTH(DesMin1+2)=12),DesMin1+2,\"\"),IF(AND(YEAR(DesMin1+9)=TahunKalender,MONTH(DesMin1+9)=12),DesMin1+9,\"\"))","v":"2018-12-04"},{"$f":"IF(DAY(DesMin1)=1,IF(AND(YEAR(DesMin1+3)=TahunKalender,MONTH(DesMin1+3)=12),DesMin1+3,\"\"),IF(AND(YEAR(DesMin1+10)=TahunKalender,MONTH(DesMin1+10)=12),DesMin1+10,\"\"))","v":"2018-12-05"},{"$f":"IF(DAY(DesMin1)=1,IF(AND(YEAR(DesMin1+4)=TahunKalender,MONTH(DesMin1+4)=12),DesMin1+4,\"\"),IF(AND(YEAR(DesMin1+11)=TahunKalender,MONTH(DesMin1+11)=12),DesMin1+11,\"\"))","v":"2018-12-06"},{"$f":"IF(DAY(DesMin1)=1,IF(AND(YEAR(DesMin1+5)=TahunKalender,MONTH(DesMin1+5)=12),DesMin1+5,\"\"),IF(AND(YEAR(DesMin1+12)=TahunKalender,MONTH(DesMin1+12)=12),DesMin1+12,\"\"))","v":"2018-12-07"},{"$f":"IF(DAY(DesMin1)=1,IF(AND(YEAR(DesMin1+6)=TahunKalender,MONTH(DesMin1+6)=12),DesMin1+6,\"\"),IF(AND(YEAR(DesMin1+13)=TahunKalender,MONTH(DesMin1+13)=12),DesMin1+13,\"\"))","v":"2018-12-08"},{"$f":"IF(DAY(DesMin1)=1,IF(AND(YEAR(DesMin1+7)=TahunKalender,MONTH(DesMin1+7)=12),DesMin1+7,\"\"),IF(AND(YEAR(DesMin1+14)=TahunKalender,MONTH(DesMin1+14)=12),DesMin1+14,\"\"))","v":"2018-12-09"}]
[]
[null,{"$f":"IF(DAY(DesMin1)=1,IF(AND(YEAR(DesMin1+8)=TahunKalender,MONTH(DesMin1+8)=12),DesMin1+8,\"\"),IF(AND(YEAR(DesMin1+15)=TahunKalender,MONTH(DesMin1+15)=12),DesMin1+15,\"\"))","v":"2018-12-10"},{"$f":"IF(DAY(DesMin1)=1,IF(AND(YEAR(DesMin1+9)=TahunKalender,MONTH(DesMin1+9)=12),DesMin1+9,\"\"),IF(AND(YEAR(DesMin1+16)=TahunKalender,MONTH(DesMin1+16)=12),DesMin1+16,\"\"))","v":"2018-12-11"},{"$f":"IF(DAY(DesMin1)=1,IF(AND(YEAR(DesMin1+10)=TahunKalender,MONTH(DesMin1+10)=12),DesMin1+10,\"\"),IF(AND(YEAR(DesMin1+17)=TahunKalender,MONTH(DesMin1+17)=12),DesMin1+17,\"\"))","v":"2018-12-12"},{"$f":"IF(DAY(DesMin1)=1,IF(AND(YEAR(DesMin1+11)=TahunKalender,MONTH(DesMin1+11)=12),DesMin1+11,\"\"),IF(AND(YEAR(DesMin1+18)=TahunKalender,MONTH(DesMin1+18)=12),DesMin1+18,\"\"))","v":"2018-12-13"},{"$f":"IF(DAY(DesMin1)=1,IF(AND(YEAR(DesMin1+12)=TahunKalender,MONTH(DesMin1+12)=12),DesMin1+12,\"\"),IF(AND(YEAR(DesMin1+19)=TahunKalender,MONTH(DesMin1+19)=12),DesMin1+19,\"\"))","v":"2018-12-14"},{"$f":"IF(DAY(DesMin1)=1,IF(AND(YEAR(DesMin1+13)=TahunKalender,MONTH(DesMin1+13)=12),DesMin1+13,\"\"),IF(AND(YEAR(DesMin1+20)=TahunKalender,MONTH(DesMin1+20)=12),DesMin1+20,\"\"))","v":"2018-12-15"},{"$f":"IF(DAY(DesMin1)=1,IF(AND(YEAR(DesMin1+14)=TahunKalender,MONTH(DesMin1+14)=12),DesMin1+14,\"\"),IF(AND(YEAR(DesMin1+21)=TahunKalender,MONTH(DesMin1+21)=12),DesMin1+21,\"\"))","v":"2018-12-16"}]
[]
[null,{"$f":"IF(DAY(DesMin1)=1,IF(AND(YEAR(DesMin1+15)=TahunKalender,MONTH(DesMin1+15)=12),DesMin1+15,\"\"),IF(AND(YEAR(DesMin1+22)=TahunKalender,MONTH(DesMin1+22)=12),DesMin1+22,\"\"))","v":"2018-12-17"},{"$f":"IF(DAY(DesMin1)=1,IF(AND(YEAR(DesMin1+16)=TahunKalender,MONTH(DesMin1+16)=12),DesMin1+16,\"\"),IF(AND(YEAR(DesMin1+23)=TahunKalender,MONTH(DesMin1+23)=12),DesMin1+23,\"\"))","v":"2018-12-18"},{"$f":"IF(DAY(DesMin1)=1,IF(AND(YEAR(DesMin1+17)=TahunKalender,MONTH(DesMin1+17)=12),DesMin1+17,\"\"),IF(AND(YEAR(DesMin1+24)=TahunKalender,MONTH(DesMin1+24)=12),DesMin1+24,\"\"))","v":"2018-12-19"},{"$f":"IF(DAY(DesMin1)=1,IF(AND(YEAR(DesMin1+18)=TahunKalender,MONTH(DesMin1+18)=12),DesMin1+18,\"\"),IF(AND(YEAR(DesMin1+25)=TahunKalender,MONTH(DesMin1+25)=12),DesMin1+25,\"\"))","v":"2018-12-20"},{"$f":"IF(DAY(DesMin1)=1,IF(AND(YEAR(DesMin1+19)=TahunKalender,MONTH(DesMin1+19)=12),DesMin1+19,\"\"),IF(AND(YEAR(DesMin1+26)=TahunKalender,MONTH(DesMin1+26)=12),DesMin1+26,\"\"))","v":"2018-12-21"},{"$f":"IF(DAY(DesMin1)=1,IF(AND(YEAR(DesMin1+20)=TahunKalender,MONTH(DesMin1+20)=12),DesMin1+20,\"\"),IF(AND(YEAR(DesMin1+27)=TahunKalender,MONTH(DesMin1+27)=12),DesMin1+27,\"\"))","v":"2018-12-22"},{"$f":"IF(DAY(DesMin1)=1,IF(AND(YEAR(DesMin1+21)=TahunKalender,MONTH(DesMin1+21)=12),DesMin1+21,\"\"),IF(AND(YEAR(DesMin1+28)=TahunKalender,MONTH(DesMin1+28)=12),DesMin1+28,\"\"))","v":"2018-12-23"}]
[]
[null,{"$f":"IF(DAY(DesMin1)=1,IF(AND(YEAR(DesMin1+22)=TahunKalender,MONTH(DesMin1+22)=12),DesMin1+22,\"\"),IF(AND(YEAR(DesMin1+29)=TahunKalender,MONTH(DesMin1+29)=12),DesMin1+29,\"\"))","v":"2018-12-24"},{"$f":"IF(DAY(DesMin1)=1,IF(AND(YEAR(DesMin1+23)=TahunKalender,MONTH(DesMin1+23)=12),DesMin1+23,\"\"),IF(AND(YEAR(DesMin1+30)=TahunKalender,MONTH(DesMin1+30)=12),DesMin1+30,\"\"))","v":"2018-12-25"},{"$f":"IF(DAY(DesMin1)=1,IF(AND(YEAR(DesMin1+24)=TahunKalender,MONTH(DesMin1+24)=12),DesMin1+24,\"\"),IF(AND(YEAR(DesMin1+31)=TahunKalender,MONTH(DesMin1+31)=12),DesMin1+31,\"\"))","v":"2018-12-26"},{"$f":"IF(DAY(DesMin1)=1,IF(AND(YEAR(DesMin1+25)=TahunKalender,MONTH(DesMin1+25)=12),DesMin1+25,\"\"),IF(AND(YEAR(DesMin1+32)=TahunKalender,MONTH(DesMin1+32)=12),DesMin1+32,\"\"))","v":"2018-12-27"},{"$f":"IF(DAY(DesMin1)=1,IF(AND(YEAR(DesMin1+26)=TahunKalender,MONTH(DesMin1+26)=12),DesMin1+26,\"\"),IF(AND(YEAR(DesMin1+33)=TahunKalender,MONTH(DesMin1+33)=12),DesMin1+33,\"\"))","v":"2018-12-28"},{"$f":"IF(DAY(DesMin1)=1,IF(AND(YEAR(DesMin1+27)=TahunKalender,MONTH(DesMin1+27)=12),DesMin1+27,\"\"),IF(AND(YEAR(DesMin1+34)=TahunKalender,MONTH(DesMin1+34)=12),DesMin1+34,\"\"))","v":"2018-12-29"},{"$f":"IF(DAY(DesMin1)=1,IF(AND(YEAR(DesMin1+28)=TahunKalender,MONTH(DesMin1+28)=12),DesMin1+28,\"\"),IF(AND(YEAR(DesMin1+35)=TahunKalender,MONTH(DesMin1+35)=12),DesMin1+35,\"\"))","v":"2018-12-30"}]
[]
[null,{"$f":"IF(DAY(DesMin1)=1,IF(AND(YEAR(DesMin1+29)=TahunKalender,MONTH(DesMin1+29)=12),DesMin1+29,\"\"),IF(AND(YEAR(DesMin1+36)=TahunKalender,MONTH(DesMin1+36)=12),DesMin1+36,\"\"))","v":"2018-12-31"},{"$f":"IF(DAY(DesMin1)=1,IF(AND(YEAR(DesMin1+30)=TahunKalender,MONTH(DesMin1+30)=12),DesMin1+30,\"\"),IF(AND(YEAR(DesMin1+37)=TahunKalender,MONTH(DesMin1+37)=12),DesMin1+37,\"\"))","v":""},"CATATAN:"]